Workbook

Sheet CC13
A1: -0.7071067812 | B1: -0.7071067812
A2: 0.7071067812 | B2: -0.7071067812
A3: -0.7071067812 | B3: 0.7071067812
A4: 0.7071067812 | B4: 0.7071067812
A5: -1 | B5: 0
A6: 1 | B6: 0
A7: 0 | B7: -1
A8: 0 | B8: 1
A9: 0 | B9: 0
A10: 0 | B10: 0
A11: 0 | B11: 0
A12: 0 | B12: 0
A13: 0 | B13: 0

Sheet CC20
A1: -0.5946035575 | B1: -0.5946035575 | C1: -0.5946035575
A2: 0.5946035575 | B2: -0.5946035575 | C2: -0.5946035575
A3: -0.5946035575 | B3: 0.5946035575 | C3: -0.5946035575
A4: 0.5946035575 | B4: 0.5946035575 | C4: -0.5946035575
A5: -0.5946035575 | B5: -0.5946035575 | C5: 0.5946035575
A6: 0.5946035575 | B6: -0.5946035575 | C6: 0.5946035575
A7: -0.5946035575 | B7: 0.5946035575 | C7: 0.5946035575
A8: 0.5946035575 | B8: 0.5946035575 | C8: 0.5946035575
A9: -1 | B9: 0 | C9: 0
A10: 1 | B10: 0 | C10: 0
A11: 0 | B11: -1 | C11: 0
A12: 0 | B12: 1 | C12: 0
A13: 0 | B13: 0 | C13: -1
A14: 0 | B14: 0 | C14: 1
A15: 0 | B15: 0 | C15: 0
A16: 0 | B16: 0 | C16: 0
A17: 0 | B17: 0 | C17: 0
A18: 0 | B18: 0 | C18: 0
A19: 0 | B19: 0 | C19: 0
A20: 0 | B20: 0 | C20: 0

Sheet CC31
A1: -0.5 | B1: -0.5 | C1: -0.5 | D1: -0.5
A2: 0.5 | B2: -0.5 | C2: -0.5 | D2: -0.5
A3: -0.5 | B3: 0.5 | C3: -0.5 | D3: -0.5
A4: 0.5 | B4: 0.5 | C4: -0.5 | D4: -0.5
A5: -0.5 | B5: -0.5 | C5: 0.5 | D5: -0.5
A6: 0.5 | B6: -0.5 | C6: 0.5 | D6: -0.5
A7: -0.5 | B7: 0.5 | C7: 0.5 | D7: -0.5
A8: 0.5 | B8: 0.5 | C8: 0.5 | D8: -0.5
A9: -0.5 | B9: -0.5 | C9: -0.5 | D9: 0.5
A10: 0.5 | B10: -0.5 | C10: -0.5 | D10: 0.5
A11: -0.5 | B11: 0.5 | C11: -0.5 | D11: 0.5
A12: 0.5 | B12: 0.5 | C12: -0.5 | D12: 0.5
A13: -0.5 | B13: -0.5 | C13: 0.5 | D13: 0.5
A14: 0.5 | B14: -0.5 | C14: 0.5 | D14: 0.5
A15: -0.5 | B15: 0.5 | C15: 0.5 | D15: 0.5
A16: 0.5 | B16: 0.5 | C16: 0.5 | D16: 0.5
A17: -1 | B17: 0 | C17: 0 | D17: 0
A18: 1 | B18: 0 | C18: 0 | D18: 0
A19: 0 | B19: -1 | C19: 0 | D19: 0
A20: 0 | B20: 1 | C20: 0 | D20: 0
A21: 0 | B21: 0 | C21: -1 | D21: 0
A22: 0 | B22: 0 | C22: 1 | D22: 0
A23: 0 | B23: 0 | C23: 0 | D23: -1
A24: 0 | B24: 0 | C24: 0 | D24: 1
A25: 0 | B25: 0 | C25: 0 | D25: 0
A26: 0 | B26: 0 | C26: 0 | D26: 0
A27: 0 | B27: 0 | C27: 0 | D27: 0
A28: 0 | B28: 0 | C28: 0 | D28: 0
A29: 0 | B29: 0 | C29: 0 | D29: 0
A30: 0 | B30: 0 | C30: 0 | D30: 0
A31: 0 | B31: 0 | C31: 0 | D31: 0

Sheet CC32
A1: -0.5 | B1: -0.5 | C1: -0.5 | D1: -0.5 | E1: 0.5
A2: 0.5 | B2: -0.5 | C2: -0.5 | D2: -0.5 | E2: -0.5
A3: -0.5 | B3: 0.5 | C3: -0.5 | D3: -0.5 | E3: -0.5
A4: 0.5 | B4: 0.5 | C4: -0.5 | D4: -0.5 | E4: 0.5
A5: -0.5 | B5: -0.5 | C5: 0.5 | D5: -0.5 | E5: -0.5
A6: 0.5 | B6: -0.5 | C6: 0.5 | D6: -0.5 | E6: 0.5
A7: -0.5 | B7: 0.5 | C7: 0.5 | D7: -0.5 | E7: 0.5
A8: 0.5 | B8: 0.5 | C8: 0.5 | D8: -0.5 | E8: -0.5
A9: -0.5 | B9: -0.5 | C9: -0.5 | D9: 0.5 | E9: -0.5
A10: 0.5 | B10: -0.5 | C10: -0.5 | D10: 0.5 | E10: 0.5
A11: -0.5 | B11: 0.5 | C11: -0.5 | D11: 0.5 | E11: 0.5
A12: 0.5 | B12: 0.5 | C12: -0.5 | D12: 0.5 | E12: -0.5
A13: -0.5 | B13: -0.5 | C13: 0.5 | D13: 0.5 | E13: 0.5
A14: 0.5 | B14: -0.5 | C14: 0.5 | D14: 0.5 | E14: -0.5
A15: -0.5 | B15: 0.5 | C15: 0.5 | D15: 0.5 | E15: -0.5
A16: 0.5 | B16: 0.5 | C16: 0.5 | D16: 0.5 | E16: 0.5
A17: -1 | B17: 0 | C17: 0 | D17: 0 | E17: 0
A18: 1 | B18: 0 | C18: 0 | D18: 0 | E18: 0
A19: 0 | B19: -1 | C19: 0 | D19: 0 | E19: 0
A20: 0 | B20: 1 | C20: 0 | D20: 0 | E20: 0
A21: 0 | B21: 0 | C21: -1 | D21: 0 | E21: 0
A22: 0 | B22: 0 | C22: 1 | D22: 0 | E22: 0
A23: 0 | B23: 0 | C23: 0 | D23: -1 | E23: 0
A24: 0 | B24: 0 | C24: 0 | D24: 1 | E24: 0
A25: 0 | B25: 0 | C25: 0 | D25: 0 | E25: -1
A26: 0 | B26: 0 | C26: 0 | D26: 0 | E26: 1
A27: 0 | B27: 0 | C27: 0 | D27: 0 | E27: 0
A28: 0 | B28: 0 | C28: 0 | D28: 0 | E28: 0
A29: 0 | B29: 0 | C29: 0 | D29: 0 | E29: 0
A30: 0 | B30: 0 | C30: 0 | D30: 0 | E30: 0
A31: 0 | B31: 0 | C31: 0 | D31: 0 | E31: 0
A32: 0 | B32: 0 | C32: 0 | D32: 0 | E32: 0

Sheet CC52
A1: -0.4204482076 | B1: -0.4204482076 | C1: -0.4204482076 | D1: -0.4204482076 | E1: -0.4204482076
A2: 0.4204482076 | B2: -0.4204482076 | C2: -0.4204482076 | D2: -0.4204482076 | E2: -0.4204482076
A3: -0.4204482076 | B3: 0.4204482076 | C3: -0.4204482076 | D3: -0.4204482076 | E3: -0.4204482076
A4: 0.4204482076 | B4: 0.4204482076 | C4: -0.4204482076 | D4: -0.4204482076 | E4: -0.4204482076
A5: -0.4204482076 | B5: -0.4204482076 | C5: 0.4204482076 | D5: -0.4204482076 | E5: -0.4204482076
A6: 0.4204482076 | B6: -0.4204482076 | C6: 0.4204482076 | D6: -0.4204482076 | E6: -0.4204482076
A7: -0.4204482076 | B7: 0.4204482076 | C7: 0.4204482076 | D7: -0.4204482076 | E7: -0.4204482076
A8: 0.4204482076 | B8: 0.4204482076 | C8: 0.4204482076 | D8: -0.4204482076 | E8: -0.4204482076
A9: -0.4204482076 | B9: -0.4204482076 | C9: -0.4204482076 | D9: 0.4204482076 | E9: -0.4204482076
A10: 0.4204482076 | B10: -0.4204482076 | C10: -0.4204482076 | D10: 0.4204482076 | E10: -0.4204482076
A11: -0.4204482076 | B11: 0.4204482076 | C11: -0.4204482076 | D11: 0.4204482076 | E11: -0.4204482076
A12: 0.4204482076 | B12: 0.4204482076 | C12: -0.4204482076 | D12: 0.4204482076 | E12: -0.4204482076
A13: -0.4204482076 | B13: -0.4204482076 | C13: 0.4204482076 | D13: 0.4204482076 | E13: -0.4204482076
A14: 0.4204482076 | B14: -0.4204482076 | C14: 0.4204482076 | D14: 0.4204482076 | E14: -0.4204482076
A15: -0.4204482076 | B15: 0.4204482076 | C15: 0.4204482076 | D15: 0.4204482076 | E15: -0.4204482076
A16: 0.4204482076 | B16: 0.4204482076 | C16: 0.4204482076 | D16: 0.4204482076 | E16: -0.4204482076
A17: -0.4204482076 | B17: -0.4204482076 | C17: -0.4204482076 | D17: -0.4204482076 | E17: 0.4204482076
A18: 0.4204482076 | B18: -0.4204482076 | C18: -0.4204482076 | D18: -0.4204482076 | E18: 0.4204482076
A19: -0.4204482076 | B19: 0.4204482076 | C19: -0.4204482076 | D19: -0.4204482076 | E19: 0.4204482076
A20: 0.4204482076 | B20: 0.4204482076 | C20: -0.4204482076 | D20: -0.4204482076 | E20: 0.4204482076
A21: -0.4204482076 | B21: -0.4204482076 | C21: 0.4204482076 | D21: -0.4204482076 | E21: 0.4204482076
A22: 0.4204482076 | B22: -0.4204482076 | C22: 0.4204482076 | D22: -0.4204482076 | E22: 0.4204482076
A23: -0.4204482076 | B23: 0.4204482076 | C23: 0.4204482076 | D23: -0.4204482076 | E23: 0.4204482076
A24: 0.4204482076 | B24: 0.4204482076 | C24: 0.4204482076 | D24: -0.4204482076 | E24: 0.4204482076
A25: -0.4204482076 | B25: -0.4204482076 | C25: -0.4204482076 | D25: 0.4204482076 | E25: 0.4204482076
A26: 0.4204482076 | B26: -0.4204482076 | C26: -0.4204482076 | D26: 0.4204482076 | E26: 0.4204482076
A27: -0.4204482076 | B27: 0.4204482076 | C27: -0.4204482076 | D27: 0.4204482076 | E27: 0.4204482076
A28: 0.4204482076 | B28: 0.4204482076 | C28: -0.4204482076 | D28: 0.4204482076 | E28: 0.4204482076
A29: -0.4204482076 | B29: -0.4204482076 | C29: 0.4204482076 | D29: 0.4204482076 | E29: 0.4204482076
A30: 0.4204482076 | B30: -0.4204482076 | C30: 0.4204482076 | D30: 0.4204482076 | E30: 0.4204482076
A31: -0.4204482076 | B31: 0.4204482076 | C31: 0.4204482076 | D31: 0.4204482076 | E31: 0.4204482076
A32: 0.4204482076 | B32: 0.4204482076 | C32: 0.4204482076 | D32: 0.4204482076 | E32: 0.4204482076
A33: -1 | B33: 0 | C33: 0 | D33: 0 | E33: 0
A34: 1 | B34: 0 | C34: 0 | D34: 0 | E34: 0
A35: 0 | B35: -1 | C35: 0 | D35: 0 | E35: 0
A36: 0 | B36: 1 | C36: 0 | D36: 0 | E36: 0
A37: 0 | B37: 0 | C37: -1 | D37: 0 | E37: 0
A38: 0 | B38: 0 | C38: 1 | D38: 0 | E38: 0
A39: 0 | B39: 0 | C39: 0 | D39: -1 | E39: 0
A40: 0 | B40: 0 | C40: 0 | D40: 1 | E40: 0
A41: 0 | B41: 0 | C41: 0 | D41: 0 | E41: -1
A42: 0 | B42: 0 | C42: 0 | D42: 0 | E42: 1
A43: 0 | B43: 0 | C43: 0 | D43: 0 | E43: 0
A44: 0 | B44: 0 | C44: 0 | D44: 0 | E44: 0
A45: 0 | B45: 0 | C45: 0 | D45: 0 | E45: 0
A46: 0 | B46: 0 | C46: 0 | D46: 0 | E46: 0
A47: 0 | B47: 0 | C47: 0 | D47: 0 | E47: 0
A48: 0 | B48: 0 | C48: 0 | D48: 0 | E48: 0
A49: 0 | B49: 0 | C49: 0 | D49: 0 | E49: 0
A50: 0 | B50: 0 | C50: 0 | D50: 0 | E50: 0
A51: 0 | B51: 0 | C51: 0 | D51: 0 | E51: 0
A52: 0 | B52: 0 | C52: 0 | D52: 0 | E52: 0

Sheet CC53
A1: -0.4204482076 | B1: -0.4204482076 | C1: -0.4204482076 | D1: -0.4204482076 | E1: -0.4204482076 | F1: -0.4204482076
A2: 0.4204482076 | B2: -0.4204482076 | C2: -0.4204482076 | D2: -0.4204482076 | E2: -0.4204482076 | F2: 0.4204482076
A3: -0.4204482076 | B3: 0.4204482076 | C3: -0.4204482076 | D3: -0.4204482076 | E3: -0.4204482076 | F3: 0.4204482076
A4: 0.4204482076 | B4: 0.4204482076 | C4: -0.4204482076 | D4: -0.4204482076 | E4: -0.4204482076 | F4: -0.4204482076
A5: -0.4204482076 | B5: -0.4204482076 | C5: 0.4204482076 | D5: -0.4204482076 | E5: -0.4204482076 | F5: 0.4204482076
A6: 0.4204482076 | B6: -0.4204482076 | C6: 0.4204482076 | D6: -0.4204482076 | E6: -0.4204482076 | F6: -0.4204482076
A7: -0.4204482076 | B7: 0.4204482076 | C7: 0.4204482076 | D7: -0.4204482076 | E7: -0.4204482076 | F7: -0.4204482076
A8: 0.4204482076 | B8: 0.4204482076 | C8: 0.4204482076 | D8: -0.4204482076 | E8: -0.4204482076 | F8: 0.4204482076
A9: -0.4204482076 | B9: -0.4204482076 | C9: -0.4204482076 | D9: 0.4204482076 | E9: -0.4204482076 | F9: 0.4204482076
A10: 0.4204482076 | B10: -0.4204482076 | C10: -0.4204482076 | D10: 0.4204482076 | E10: -0.4204482076 | F10: -0.4204482076
A11: -0.4204482076 | B11: 0.4204482076 | C11: -0.4204482076 | D11: 0.4204482076 | E11: -0.4204482076 | F11: -0.4204482076
A12: 0.4204482076 | B12: 0.4204482076 | C12: -0.4204482076 | D12: 0.4204482076 | E12: -0.4204482076 | F12: 0.4204482076
A13: -0.4204482076 | B13: -0.4204482076 | C13: 0.4204482076 | D13: 0.4204482076 | E13: -0.4204482076 | F13: -0.4204482076
A14: 0.4204482076 | B14: -0.4204482076 | C14: 0.4204482076 | D14: 0.4204482076 | E14: -0.4204482076 | F14: 0.4204482076
A15: -0.4204482076 | B15: 0.4204482076 | C15: 0.4204482076 | D15: 0.4204482076 | E15: -0.4204482076 | F15: 0.4204482076
A16: 0.4204482076 | B16: 0.4204482076 | C16: 0.4204482076 | D16: 0.4204482076 | E16: -0.4204482076 | F16: -0.4204482076
A17: -0.4204482076 | B17: -0.4204482076 | C17: -0.4204482076 | D17: -0.4204482076 | E17: 0.4204482076 | F17: 0.4204482076
A18: 0.4204482076 | B18: -0.4204482076 | C18: -0.4204482076 | D18: -0.4204482076 | E18: 0.4204482076 | F18: -0.4204482076
A19: -0.4204482076 | B19: 0.4204482076 | C19: -0.4204482076 | D19: -0.4204482076 | E19: 0.4204482076 | F19: -0.4204482076
A20: 0.4204482076 | B20: 0.4204482076 | C20: -0.4204482076 | D20: -0.4204482076 | E20: 0.4204482076 | F20: 0.4204482076
A21: -0.4204482076 | B21: -0.4204482076 | C21: 0.4204482076 | D21: -0.4204482076 | E21: 0.4204482076 | F21: -0.4204482076
A22: 0.4204482076 | B22: -0.4204482076 | C22: 0.4204482076 | D22: -0.4204482076 | E22: 0.4204482076 | F22: 0.4204482076
A23: -0.4204482076 | B23: 0.4204482076 | C23: 0.4204482076 | D23: -0.4204482076 | E23: 0.4204482076 | F23: 0.4204482076
A24: 0.4204482076 | B24: 0.4204482076 | C24: 0.4204482076 | D24: -0.4204482076 | E24: 0.4204482076 | F24: -0.4204482076
A25: -0.4204482076 | B25: -0.4204482076 | C25: -0.4204482076 | D25: 0.4204482076 | E25: 0.4204482076 | F25: -0.4204482076
A26: 0.4204482076 | B26: -0.4204482076 | C26: -0.4204482076 | D26: 0.4204482076 | E26: 0.4204482076 | F26: 0.4204482076
A27: -0.4204482076 | B27: 0.4204482076 | C27: -0.4204482076 | D27: 0.4204482076 | E27: 0.4204482076 | F27: 0.4204482076
A28: 0.4204482076 | B28: 0.4204482076 | C28: -0.4204482076 | D28: 0.4204482076 | E28: 0.4204482076 | F28: -0.4204482076
A29: -0.4204482076 | B29: -0.4204482076 | C29: 0.4204482076 | D29: 0.4204482076 | E29: 0.4204482076 | F29: 0.4204482076
A30: 0.4204482076 | B30: -0.4204482076 | C30: 0.4204482076 | D30: 0.4204482076 | E30: 0.4204482076 | F30: -0.4204482076
A31: -0.4204482076 | B31: 0.4204482076 | C31: 0.4204482076 | D31: 0.4204482076 | E31: 0.4204482076 | F31: -0.4204482076
A32: 0.4204482076 | B32: 0.4204482076 | C32: 0.4204482076 | D32: 0.4204482076 | E32: 0.4204482076 | F32: 0.4204482076
A33: -1 | B33: 0 | C33: 0 | D33: 0 | E33: 0 | F33: 0
A34: 1 | B34: 0 | C34: 0 | D34: 0 | E34: 0 | F34: 0
A35: 0 | B35: -1 | C35: 0 | D35: 0 | E35: 0 | F35: 0
A36: 0 | B36: 1 | C36: 0 | D36: 0 | E36: 0 | F36: 0
A37: 0 | B37: 0 | C37: -1 | D37: 0 | E37: 0 | F37: 0
A38: 0 | B38: 0 | C38: 1 | D38: 0 | E38: 0 | F38: 0
A39: 0 | B39: 0 | C39: 0 | D39: -1 | E39: 0 | F39: 0
A40: 0 | B40: 0 | C40: 0 | D40: 1 | E40: 0 | F40: 0
A41: 0 | B41: 0 | C41: 0 | D41: 0 | E41: -1 | F41: 0
A42: 0 | B42: 0 | C42: 0 | D42: 0 | E42: 1 | F42: 0
A43: 0 | B43: 0 | C43: 0 | D43: 0 | E43: 0 | F43: -1
A44: 0 | B44: 0 | C44: 0 | D44: 0 | E44: 0 | F44: 1
A45: 0 | B45: 0 | C45: 0 | D45: 0 | E45: 0 | F45: 0
A46: 0 | B46: 0 | C46: 0 | D46: 0 | E46: 0 | F46: 0
A47: 0 | B47: 0 | C47: 0 | D47: 0 | E47: 0 | F47: 0
A48: 0 | B48: 0 | C48: 0 | D48: 0 | E48: 0 | F48: 0
A49: 0 | B49: 0 | C49: 0 | D49: 0 | E49: 0 | F49: 0
A50: 0 | B50: 0 | C50: 0 | D50: 0 | E50: 0 | F50: 0
A51: 0 | B51: 0 | C51: 0 | D51: 0 | E51: 0 | F51: 0
A52: 0 | B52: 0 | C52: 0 | D52: 0 | E52: 0 | F52: 0
A53: 0 | B53: 0 | C53: 0 | D53: 0 | E53: 0 | F53: 0

Sheet BB15
A1: -1 | B1: -1 | C1: 0
A2: 1 | B2: -1 | C2: 0
A3: -1 | B3: 1 | C3: 0
A4: 1 | B4: 1 | C4: 0
A5: -1 | B5: 0 | C5: -1
A6: 1 | B6: 0 | C6: -1
A7: -1 | B7: 0 | C7: 1
A8: 1 | B8: 0 | C8: 1
A9: 0 | B9: -1 | C9: -1
A10: 0 | B10: 1 | C10: -1
A11: 0 | B11: -1 | C11: 1
A12: 0 | B12: 1 | C12: 1
A13: 0 | B13: 0 | C13: 0
A14: 0 | B14: 0 | C14: 0
A15: 0 | B15: 0 | C15: 0

Sheet BB27
A1: -1 | B1: -1 | C1: 0 | D1: 0
A2: 1 | B2: -1 | C2: 0 | D2: 0
A3: -1 | B3: 1 | C3: 0 | D3: 0
A4: 1 | B4: 1 | C4: 0 | D4: 0
A5: 0 | B5: 0 | C5: -1 | D5: -1
A6: 0 | B6: 0 | C6: 1 | D6: -1
A7: 0 | B7: 0 | C7: -1 | D7: 1
A8: 0 | B8: 0 | C8: 1 | D8: 1
A9: -1 | B9: 0 | C9: -1 | D9: 0
A10: 1 | B10: 0 | C10: -1 | D10: 0
A11: -1 | B11: 0 | C11: 1 | D11: 0
A12: 1 | B12: 0 | C12: 1 | D12: 0
A13: 0 | B13: -1 | C13: 0 | D13: -1
A14: 0 | B14: 1 | C14: 0 | D14: -1
A15: 0 | B15: -1 | C15: 0 | D15: 1
A16: 0 | B16: 1 | C16: 0 | D16: 1
A17: -1 | B17: 0 | C17: 0 | D17: -1
A18: 1 | B18: 0 | C18: 0 | D18: -1
A19: -1 | B19: 0 | C19: 0 | D19: 1
A20: 1 | B20: 0 | C20: 0 | D20: 1
A21: 0 | B21: -1 | C21: -1 | D21: 0
A22: 0 | B22: 1 | C22: -1 | D22: 0
A23: 0 | B23: -1 | C23: 1 | D23: 0
A24: 0 | B24: 1 | C24: 1 | D24: 0
A25: 0 | B25: 0 | C25: 0 | D25: 0
A26: 0 | B26: 0 | C26: 0 | D26: 0
A27: 0 | B27: 0 | C27: 0 | D27: 0

Sheet BB46
A1: -1 | B1: -1 | C1: 0 | D1: 0 | E1: 0
A2: 1 | B2: -1 | C2: 0 | D2: 0 | E2: 0
A3: -1 | B3: 1 | C3: 0 | D3: 0 | E3: 0
A4: 1 | B4: 1 | C4: 0 | D4: 0 | E4: 0
A5: 0 | B5: 0 | C5: -1 | D5: -1 | E5: 0
A6: 0 | B6: 0 | C6: 1 | D6: -1 | E6: 0
A7: 0 | B7: 0 | C7: -1 | D7: 1 | E7: 0
A8: 0 | B8: 0 | C8: 1 | D8: 1 | E8: 0
A9: 0 | B9: -1 | C9: 0 | D9: 0 | E9: -1
A10: 0 | B10: 1 | C10: 0 | D10: 0 | E10: -1
A11: 0 | B11: -1 | C11: 0 | D11: 0 | E11: 1
A12: 0 | B12: 1 | C12: 0 | D12: 0 | E12: 1
A13: -1 | B13: 0 | C13: -1 | D13: 0 | E13: 0
A14: 1 | B14: 0 | C14: -1 | D14: 0 | E14: 0
A15: -1 | B15: 0 | C15: 1 | D15: 0 | E15: 0
A16: 1 | B16: 0 | C16: 1 | D16: 0 | E16: 0
A17: 0 | B17: 0 | C17: 0 | D17: -1 | E17: -1
A18: 0 | B18: 0 | C18: 0 | D18: 1 | E18: -1
A19: 0 | B19: 0 | C19: 0 | D19: -1 | E19: 1
A20: 0 | B20: 0 | C20: 0 | D20: 1 | E20: 1
A21: 0 | B21: -1 | C21: -1 | D21: 0 | E21: 0
A22: 0 | B22: 1 | C22: -1 | D22: 0 | E22: 0
A23: 0 | B23: -1 | C23: 1 | D23: 0 | E23: 0
A24: 0 | B24: 1 | C24: 1 | D24: 0 | E24: 0
A25: -1 | B25: 0 | C25: 0 | D25: -1 | E25: 0
A26: 1 | B26: 0 | C26: 0 | D26: -1 | E26: 0
A27: -1 | B27: 0 | C27: 0 | D27: 1 | E27: 0
A28: 1 | B28: 0 | C28: 0 | D28: 1 | E28: 0
A29: 0 | B29: 0 | C29: -1 | D29: 0 | E29: -1
A30: 0 | B30: 0 | C30: 1 | D30: 0 | E30: -1
A31: 0 | B31: 0 | C31: -1 | D31: 0 | E31: 1
A32: 0 | B32: 0 | C32: 1 | D32: 0 | E32: 1
A33: -1 | B33: 0 | C33: 0 | D33: 0 | E33: -1
A34: 1 | B34: 0 | C34: 0 | D34: 0 | E34: -1
A35: -1 | B35: 0 | C35: 0 | D35: 0 | E35: 1
A36: 1 | B36: 0 | C36: 0 | D36: 0 | E36: 1
A37: 0 | B37: -1 | C37: 0 | D37: -1 | E37: 0
A38: 0 | B38: 1 | C38: 0 | D38: -1 | E38: 0
A39: 0 | B39: -1 | C39: 0 | D39: 1 | E39: 0
A40: 0 | B40: 1 | C40: 0 | D40: 1 | E40: 0
A41: 0 | B41: 0 | C41: 0 | D41: 0 | E41: 0
A42: 0 | B42: 0 | C42: 0 | D42: 0 | E42: 0
A43: 0 | B43: 0 | C43: 0 | D43: 0 | E43: 0
A44: 0 | B44: 0 | C44: 0 | D44: 0 | E44: 0
A45: 0 | B45: 0 | C45: 0 | D45: 0 | E45: 0
A46: 0 | B46: 0 | C46: 0 | D46: 0 | E46: 0

Sheet BB54
A1: -1 | B1: -1 | C1: 0 | D1: -1 | E1: 0 | F1: 0
A2: 1 | B2: -1 | C2: 0 | D2: -1 | E2: 0 | F2: 0
A3: -1 | B3: 1 | C3: 0 | D3: -1 | E3: 0 | F3: 0
A4: 1 | B4: 1 | C4: 0 | D4: -1 | E4: 0 | F4: 0
A5: -1 | B5: -1 | C5: 0 | D5: 1 | E5: 0 | F5: 0
A6: 1 | B6: -1 | C6: 0 | D6: 1 | E6: 0 | F6: 0
A7: -1 | B7: 1 | C7: 0 | D7: 1 | E7: 0 | F7: 0
A8: 1 | B8: 1 | C8: 0 | D8: 1 | E8: 0 | F8: 0
A9: 0 | B9: -1 | C9: -1 | D9: 0 | E9: -1 | F9: 0
A10: 0 | B10: 1 | C10: -1 | D10: 0 | E10: -1 | F10: 0
A11: 0 | B11: -1 | C11: 1 | D11: 0 | E11: -1 | F11: 0
A12: 0 | B12: 1 | C12: 1 | D12: 0 | E12: -1 | F12: 0
A13: 0 | B13: -1 | C13: -1 | D13: 0 | E13: 1 | F13: 0
A14: 0 | B14: 1 | C14: -1 | D14: 0 | E14: 1 | F14: 0
A15: 0 | B15: -1 | C15: 1 | D15: 0 | E15: 1 | F15: 0
A16: 0 | B16: 1 | C16: 1 | D16: 0 | E16: 1 | F16: 0
A17: 0 | B17: 0 | C17: -1 | D17: -1 | E17: 0 | F17: -1
A18: 0 | B18: 0 | C18: 1 | D18: -1 | E18: 0 | F18: -1
A19: 0 | B19: 0 | C19: -1 | D19: 1 | E19: 0 | F19: -1
A20: 0 | B20: 0 | C20: 1 | D20: 1 | E20: 0 | F20: -1
A21: 0 | B21: 0 | C21: -1 | D21: -1 | E21: 0 | F21: 1
A22: 0 | B22: 0 | C22: 1 | D22: -1 | E22: 0 | F22: 1
A23: 0 | B23: 0 | C23: -1 | D23: 1 | E23: 0 | F23: 1
A24: 0 | B24: 0 | C24: 1 | D24: 1 | E24: 0 | F24: 1
A25: -1 | B25: 0 | C25: 0 | D25: -1 | E25: -1 | F25: 0
A26: 1 | B26: 0 | C26: 0 | D26: -1 | E26: -1 | F26: 0
A27: -1 | B27: 0 | C27: 0 | D27: 1 | E27: -1 | F27: 0
A28: 1 | B28: 0 | C28: 0 | D28: 1 | E28: -1 | F28: 0
A29: -1 | B29: 0 | C29: 0 | D29: -1 | E29: 1 | F29: 0
A30: 1 | B30: 0 | C30: 0 | D30: -1 | E30: 1 | F30: 0
A31: -1 | B31: 0 | C31: 0 | D31: 1 | E31: 1 | F31: 0
A32: 1 | B32: 0 | C32: 0 | D32: 1 | E32: 1 | F32: 0
A33: 0 | B33: -1 | C33: 0 | D33: 0 | E33: -1 | F33: -1
A34: 0 | B34: 1 | C34: 0 | D34: 0 | E34: -1 | F34: -1
A35: 0 | B35: -1 | C35: 0 | D35: 0 | E35: 1 | F35: -1
A36: 0 | B36: 1 | C36: 0 | D36: 0 | E36: 1 | F36: -1
A37: 0 | B37: -1 | C37: 0 | D37: 0 | E37: -1 | F37: 1
A38: 0 | B38: 1 | C38: 0 | D38: 0 | E38: -1 | F38: 1
A39: 0 | B39: -1 | C39: 0 | D39: 0 | E39: 1 | F39: 1
A40: 0 | B40: 1 | C40: 0 | D40: 0 | E40: 1 | F40: 1
A41: -1 | B41: 0 | C41: -1 | D41: 0 | E41: 0 | F41: -1
A42: 1 | B42: 0 | C42: -1 | D42: 0 | E42: 0 | F42: -1
A43: -1 | B43: 0 | C43: 1 | D43: 0 | E43: 0 | F43: -1
A44: 1 | B44: 0 | C44: 1 | D44: 0 | E44: 0 | F44: -1
A45: -1 | B45: 0 | C45: -1 | D45: 0 | E45: 0 | F45: 1
A46: 1 | B46: 0 | C46: -1 | D46: 0 | E46: 0 | F46: 1
A47: -1 | B47: 0 | C47: 1 | D47: 0 | E47: 0 | F47: 1
A48: 1 | B48: 0 | C48: 1 | D48: 0 | E48: 0 | F48: 1
A49: 0 | B49: 0 | C49: 0 | D49: 0 | E49: 0 | F49: 0
A50: 0 | B50: 0 | C50: 0 | D50: 0 | E50: 0 | F50: 0
A51: 0 | B51: 0 | C51: 0 | D51: 0 | E51: 0 | F51: 0
A52: 0 | B52: 0 | C52: 0 | D52: 0 | E52: 0 | F52: 0
A53: 0 | B53: 0 | C53: 0 | D53: 0 | E53: 0 | F53: 0
A54: 0 | B54: 0 | C54: 0 | D54: 0 | E54: 0 | F54: 0

Sheet BB62
A1: 0 | B1: 0 | C1: 0 | D1: -1 | E1: -1 | F1: -1 | G1: 0
A2: 0 | B2: 0 | C2: 0 | D2: 1 | E2: -1 | F2: -1 | G2: 0
A3: 0 | B3: 0 | C3: 0 | D3: -1 | E3: 1 | F3: -1 | G3: 0
A4: 0 | B4: 0 | C4: 0 | D4: 1 | E4: 1 | F4: -1 | G4: 0
A5: 0 | B5: 0 | C5: 0 | D5: -1 | E5: -1 | F5: 1 | G5: 0
A6: 0 | B6: 0 | C6: 0 | D6: 1 | E6: -1 | F6: 1 | G6: 0
A7: 0 | B7: 0 | C7: 0 | D7: -1 | E7: 1 | F7: 1 | G7: 0
A8: 0 | B8: 0 | C8: 0 | D8: 1 | E8: 1 | F8: 1 | G8: 0
A9: -1 | B9: 0 | C9: 0 | D9: 0 | E9: 0 | F9: -1 | G9: -1
A10: 1 | B10: 0 | C10: 0 | D10: 0 | E10: 0 | F10: -1 | G10: -1
A11: -1 | B11: 0 | C11: 0 | D11: 0 | E11: 0 | F11: 1 | G11: -1
A12: 1 | B12: 0 | C12: 0 | D12: 0 | E12: 0 | F12: 1 | G12: -1
A13: -1 | B13: 0 | C13: 0 | D13: 0 | E13: 0 | F13: -1 | G13: 1
A14: 1 | B14: 0 | C14: 0 | D14: 0 | E14: 0 | F14: -1 | G14: 1
A15: -1 | B15: 0 | C15: 0 | D15: 0 | E15: 0 | F15: 1 | G15: 1
A16: 1 | B16: 0 | C16: 0 | D16: 0 | E16: 0 | F16: 1 | G16: 1
A17: 0 | B17: -1 | C17: 0 | D17: 0 | E17: -1 | F17: 0 | G17: -1
A18: 0 | B18: 1 | C18: 0 | D18: 0 | E18: -1 | F18: 0 | G18: -1
A19: 0 | B19: -1 | C19: 0 | D19: 0 | E19: 1 | F19: 0 | G19: -1
A20: 0 | B20: 1 | C20: 0 | D20: 0 | E20: 1 | F20: 0 | G20: -1
A21: 0 | B21: -1 | C21: 0 | D21: 0 | E21: -1 | F21: 0 | G21: 1
A22: 0 | B22: 1 | C22: 0 | D22: 0 | E22: -1 | F22: 0 | G22: 1
A23: 0 | B23: -1 | C23: 0 | D23: 0 | E23: 1 | F23: 0 | G23: 1
A24: 0 | B24: 1 | C24: 0 | D24: 0 | E24: 1 | F24: 0 | G24: 1
A25: -1 | B25: -1 | C25: 0 | D25: -1 | E25: 0 | F25: 0 | G25: 0
A26: 1 | B26: -1 | C26: 0 | D26: -1 | E26: 0 | F26: 0 | G26: 0
A27: -1 | B27: 1 | C27: 0 | D27: -1 | E27: 0 | F27: 0 | G27: 0
A28: 1 | B28: 1 | C28: 0 | D28: -1 | E28: 0 | F28: 0 | G28: 0
A29: -1 | B29: -1 | C29: 0 | D29: 1 | E29: 0 | F29: 0 | G29: 0
A30: 1 | B30: -1 | C30: 0 | D30: 1 | E30: 0 | F30: 0 | G30: 0
A31: -1 | B31: 1 | C31: 0 | D31: 1 | E31: 0 | F31: 0 | G31: 0
A32: 1 | B32: 1 | C32: 0 | D32: 1 | E32: 0 | F32: 0 | G32: 0
A33: 0 | B33: 0 | C33: -1 | D33: -1 | E33: 0 | F33: 0 | G33: -1
A34: 0 | B34: 0 | C34: 1 | D34: -1 | E34: 0 | F34: 0 | G34: -1
A35: 0 | B35: 0 | C35: -1 | D35: 1 | E35: 0 | F35: 0 | G35: -1
A36: 0 | B36: 0 | C36: 1 | D36: 1 | E36: 0 | F36: 0 | G36: -1
A37: 0 | B37: 0 | C37: -1 | D37: -1 | E37: 0 | F37: 0 | G37: 1
A38: 0 | B38: 0 | C38: 1 | D38: -1 | E38: 0 | F38: 0 | G38: 1
A39: 0 | B39: 0 | C39: -1 | D39: 1 | E39: 0 | F39: 0 | G39: 1
A40: 0 | B40: 0 | C40: 1 | D40: 1 | E40: 0 | F40: 0 | G40: 1
A41: -1 | B41: 0 | C41: -1 | D41: 0 | E41: -1 | F41: 0 | G41: 0
A42: 1 | B42: 0 | C42: -1 | D42: 0 | E42: -1 | F42: 0 | G42: 0
A43: -1 | B43: 0 | C43: 1 | D43: 0 | E43: -1 | F43: 0 | G43: 0
A44: 1 | B44: 0 | C44: 1 | D44: 0 | E44: -1 | F44: 0 | G44: 0
A45: -1 | B45: 0 | C45: -1 | D45: 0 | E45: 1 | F45: 0 | G45: 0
A46: 1 | B46: 0 | C46: -1 | D46: 0 | E46: 1 | F46: 0 | G46: 0
A47: -1 | B47: 0 | C47: 1 | D47: 0 | E47: 1 | F47: 0 | G47: 0
A48: 1 | B48: 0 | C48: 1 | D48: 0 | E48: 1 | F48: 0 | G48: 0
A49: 0 | B49: -1 | C49: -1 | D49: 0 | E49: 0 | F49: -1 | G49: 0
A50: 0 | B50: 1 | C50: -1 | D50: 0 | E50: 0 | F50: -1 | G50: 0
A51: 0 | B51: -1 | C51: 1 | D51: 0 | E51: 0 | F51: -1 | G51: 0
A52: 0 | B52: 1 | C52: 1 | D52: 0 | E52: 0 | F52: -1 | G52: 0
A53: 0 | B53: -1 | C53: -1 | D53: 0 | E53: 0 | F53: 1 | G53: 0
A54: 0 | B54: 1 | C54: -1 | D54: 0 | E54: 0 | F54: 1 | G54: 0
A55: 0 | B55: -1 | C55: 1 | D55: 0 | E55: 0 | F55: 1 | G55: 0
A56: 0 | B56: 1 | C56: 1 | D56: 0 | E56: 0 | F56: 1 | G56: 0
A57: 0 | B57: 0 | C57: 0 | D57: 0 | E57: 0 | F57: 0 | G57: 0
A58: 0 | B58: 0 | C58: 0 | D58: 0 | E58: 0 | F58: 0 | G58: 0
A59: 0 | B59: 0 | C59: 0 | D59: 0 | E59: 0 | F59: 0 | G59: 0
A60: 0 | B60: 0 | C60: 0 | D60: 0 | E60: 0 | F60: 0 | G60: 0
A61: 0 | B61: 0 | C61: 0 | D61: 0 | E61: 0 | F61: 0 | G61: 0
A62: 0 | B62: 0 | C62: 0 | D62: 0 | E62: 0 | F62: 0 | G62: 0

Sheet PB8
A1: 1 | B1: -1 | C1: -1 | D1: 1 | E1: -1 | F1: 1 | G1: 1
A2: 1 | B2: 1 | C2: -1 | D2: -1 | E2: 1 | F2: -1 | G2: 1
A3: 1 | B3: 1 | C3: 1 | D3: -1 | E3: -1 | F3: 1 | G3: -1
A4: -1 | B4: 1 | C4: 1 | D4: 1 | E4: -1 | F4: -1 | G4: 1
A5: 1 | B5: -1 | C5: 1 | D5: 1 | E5: 1 | F5: -1 | G5: -1
A6: -1 | B6: 1 | C6: -1 | D6: 1 | E6: 1 | F6: 1 | G6: -1
A7: -1 | B7: -1 | C7: 1 | D7: -1 | E7: 1 | F7: 1 | G7: 1
A8: -1 | B8: -1 | C8: -1 | D8: -1 | E8: -1 | F8: -1 | G8: -1

Sheet PB12
A1: 1 | B1: -1 | C1: 1 | D1: -1 | E1: -1 | F1: -1 | G1: 1 | H1: 1 | I1: 1 | J1: -1 | K1: 1
A2: 1 | B2: 1 | C2: -1 | D2: 1 | E2: -1 | F2: -1 | G2: -1 | H2: 1 | I2: 1 | J2: 1 | K2: -1
A3: -1 | B3: 1 | C3: 1 | D3: -1 | E3: 1 | F3: -1 | G3: -1 | H3: -1 | I3: 1 | J3: 1 | K3: 1
A4: 1 | B4: -1 | C4: 1 | D4: 1 | E4: -1 | F4: 1 | G4: -1 | H4: -1 | I4: -1 | J4: 1 | K4: 1
A5: 1 | B5: 1 | C5: -1 | D5: 1 | E5: 1 | F5: -1 | G5: 1 | H5: -1 | I5: -1 | J5: -1 | K5: 1
A6: 1 | B6: 1 | C6: 1 | D6: -1 | E6: 1 | F6: 1 | G6: -1 | H6: 1 | I6: -1 | J6: -1 | K6: -1
A7: -1 | B7: 1 | C7: 1 | D7: 1 | E7: -1 | F7: 1 | G7: 1 | H7: -1 | I7: 1 | J7: -1 | K7: -1
A8: -1 | B8: -1 | C8: 1 | D8: 1 | E8: 1 | F8: -1 | G8: 1 | H8: 1 | I8: -1 | J8: 1 | K8: -1
A9: -1 | B9: -1 | C9: -1 | D9: 1 | E9: 1 | F9: 1 | G9: -1 | H9: 1 | I9: 1 | J9: -1 | K9: 1
A10: 1 | B10: -1 | C10: -1 | D10: -1 | E10: 1 | F10: 1 | G10: 1 | H10: -1 | I10: 1 | J10: 1 | K10: -1
A11: -1 | B11: 1 | C11: -1 | D11: -1 | E11: -1 | F11: 1 | G11: 1 | H11: 1 | I11: -1 | J11: 1 | K11: 1
A12: -1 | B12: -1 | C12: -1 | D12: -1 | E12: -1 | F12: -1 | G12: -1 | H12: -1 | I12: -1 | J12: -1 | K12: -1

Sheet PB16
A1: 1 | B1: -1 | C1: -1 | D1: -1 | E1: 1 | F1: -1 | G1: -1 | H1: 1 | I1: 1 | J1: -1 | K1: 1 | L1: -1 | M1: 1 | N1: 1 | O1: 1
A2: 1 | B2: 1 | C2: -1 | D2: -1 | E2: -1 | F2: 1 | G2: -1 | H2: -1 | I2: 1 | J2: 1 | K2: -1 | L2: 1 | M2: -1 | N2: 1 | O2: 1
A3: 1 | B3: 1 | C3: 1 | D3: -1 | E3: -1 | F3: -1 | G3: 1 | H3: -1 | I3: -1 | J3: 1 | K3: 1 | L3: -1 | M3: 1 | N3: -1 | O3: 1
A4: 1 | B4: 1 | C4: 1 | D4: 1 | E4: -1 | F4: -1 | G4: -1 | H4: 1 | I4: -1 | J4: -1 | K4: 1 | L4: 1 | M4: -1 | N4: 1 | O4: -1
A5: -1 | B5: 1 | C5: 1 | D5: 1 | E5: 1 | F5: -1 | G5: -1 | H5: -1 | I5: 1 | J5: -1 | K5: -1 | L5: 1 | M5: 1 | N5: -1 | O5: 1
A6: 1 | B6: -1 | C6: 1 | D6: 1 | E6: 1 | F6: 1 | G6: -1 | H6: -1 | I6: -1 | J6: 1 | K6: -1 | L6: -1 | M6: 1 | N6: 1 | O6: -1
A7: -1 | B7: 1 | C7: -1 | D7: 1 | E7: 1 | F7: 1 | G7: 1 | H7: -1 | I7: -1 | J7: -1 | K7: 1 | L7: -1 | M7: -1 | N7: 1 | O7: 1
A8: 1 | B8: -1 | C8: 1 | D8: -1 | E8: 1 | F8: 1 | G8: 1 | H8: 1 | I8: -1 | J8: -1 | K8: -1 | L8: 1 | M8: -1 | N8: -1 | O8: 1
A9: 1 | B9: 1 | C9: -1 | D9: 1 | E9: -1 | F9: 1 | G9: 1 | H9: 1 | I9: 1 | J9: -1 | K9: -1 | L9: -1 | M9: 1 | N9: -1 | O9: -1
A10: -1 | B10: 1 | C10: 1 | D10: -1 | E10: 1 | F10: -1 | G10: 1 | H10: 1 | I10: 1 | J10: 1 | K10: -1 | L10: -1 | M10: -1 | N10: 1 | O10: -1
A11: -1 | B11: -1 | C11: 1 | D11: 1 | E11: -1 | F11: 1 | G11: -1 | H11: 1 | I11: 1 | J11: 1 | K11: 1 | L11: -1 | M11: -1 | N11: -1 | O11: 1
A12: 1 | B12: -1 | C12: -1 | D12: 1 | E12: 1 | F12: -1 | G12: 1 | H12: -1 | I12: 1 | J12: 1 | K12: 1 | L12: 1 | M12: -1 | N12: -1 | O12: -1
A13: -1 | B13: 1 | C13: -1 | D13: -1 | E13: 1 | F13: 1 | G13: -1 | H13: 1 | I13: -1 | J13: 1 | K13: 1 | L13: 1 | M13: 1 | N13: -1 | O13: -1
A14: -1 | B14: -1 | C14: 1 | D14: -1 | E14: -1 | F14: 1 | G14: 1 | H14: -1 | I14: 1 | J14: -1 | K14: 1 | L14: 1 | M14: 1 | N14: 1 | O14: -1
A15: -1 | B15: -1 | C15: -1 | D15: 1 | E15: -1 | F15: -1 | G15: 1 | H15: 1 | I15: -1 | J15: 1 | K15: -1 | L15: 1 | M15: 1 | N15: 1 | O15: 1
A16: -1 | B16: -1 | C16: -1 | D16: -1 | E16: -1 | F16: -1 | G16: -1 | H16: -1 | I16: -1 | J16: -1 | K16: -1 | L16: -1 | M16: -1 | N16: -1 | O16: -1

Sheet PB20
A1: 1 | B1: -1 | C1: 1 | D1: 1 | E1: -1 | F1: -1 | G1: -1 | H1: -1 | I1: 1 | J1: -1 | K1: 1 | L1: -1 | M1: 1 | N1: 1 | O1: 1 | P1: 1 | Q1: -1 | R1: -1 | S1: 1
A2: 1 | B2: 1 | C2: -1 | D2: 1 | E2: 1 | F2: -1 | G2: -1 | H2: -1 | I2: -1 | J2: 1 | K2: -1 | L2: 1 | M2: -1 | N2: 1 | O2: 1 | P2: 1 | Q2: 1 | R2: -1 | S2: -1
A3: -1 | B3: 1 | C3: 1 | D3: -1 | E3: 1 | F3: 1 | G3: -1 | H3: -1 | I3: -1 | J3: -1 | K3: 1 | L3: -1 | M3: 1 | N3: -1 | O3: 1 | P3: 1 | Q3: 1 | R3: 1 | S3: -1
A4: -1 | B4: -1 | C4: 1 | D4: 1 | E4: -1 | F4: 1 | G4: 1 | H4: -1 | I4: -1 | J4: -1 | K4: -1 | L4: 1 | M4: -1 | N4: 1 | O4: -1 | P4: 1 | Q4: 1 | R4: 1 | S4: 1
A5: 1 | B5: -1 | C5: -1 | D5: 1 | E5: 1 | F5: -1 | G5: 1 | H5: 1 | I5: -1 | J5: -1 | K5: -1 | L5: -1 | M5: 1 | N5: -1 | O5: 1 | P5: -1 | Q5: 1 | R5: 1 | S5: 1
A6: 1 | B6: 1 | C6: -1 | D6: -1 | E6: 1 | F6: 1 | G6: -1 | H6: 1 | I6: 1 | J6: -1 | K6: -1 | L6: -1 | M6: -1 | N6: 1 | O6: -1 | P6: 1 | Q6: -1 | R6: 1 | S6: 1
A7: 1 | B7: 1 | C7: 1 | D7: -1 | E7: -1 | F7: 1 | G7: 1 | H7: -1 | I7: 1 | J7: 1 | K7: -1 | L7: -1 | M7: -1 | N7: -1 | O7: 1 | P7: -1 | Q7: 1 | R7: -1 | S7: 1
A8: 1 | B8: 1 | C8: 1 | D8: 1 | E8: -1 | F8: -1 | G8: 1 | H8: 1 | I8: -1 | J8: 1 | K8: 1 | L8: -1 | M8: -1 | N8: -1 | O8: -1 | P8: 1 | Q8: -1 | R8: 1 | S8: -1
A9: -1 | B9: 1 | C9: 1 | D9: 1 | E9: 1 | F9: -1 | G9: -1 | H9: 1 | I9: 1 | J9: -1 | K9: 1 | L9: 1 | M9: -1 | N9: -1 | O9: -1 | P9: -1 | Q9: 1 | R9: -1 | S9: 1
A10: 1 | B10: -1 | C10: 1 | D10: 1 | E10: 1 | F10: 1 | G10: -1 | H10: -1 | I10: 1 | J10: 1 | K10: -1 | L10: 1 | M10: 1 | N10: -1 | O10: -1 | P10: -1 | Q10: -1 | R10: 1 | S10: -1
A11: -1 | B11: 1 | C11: -1 | D11: 1 | E11: 1 | F11: 1 | G11: 1 | H11: -1 | I11: -1 | J11: 1 | K11: 1 | L11: -1 | M11: 1 | N11: 1 | O11: -1 | P11: -1 | Q11: -1 | R11: -1 | S11: 1
A12: 1 | B12: -1 | C12: 1 | D12: -1 | E12: 1 | F12: 1 | G12: 1 | H12: 1 | I12: -1 | J12: -1 | K12: 1 | L12: 1 | M12: -1 | N12: 1 | O12: 1 | P12: -1 | Q12: -1 | R12: -1 | S12: -1
A13: -1 | B13: 1 | C13: -1 | D13: 1 | E13: -1 | F13: 1 | G13: 1 | H13: 1 | I13: 1 | J13: -1 | K13: -1 | L13: 1 | M13: 1 | N13: -1 | O13: 1 | P13: 1 | Q13: -1 | R13: -1 | S13: -1
A14: -1 | B14: -1 | C14: 1 | D14: -1 | E14: 1 | F14: -1 | G14: 1 | H14: 1 | I14: 1 | J14: 1 | K14: -1 | L14: -1 | M14: 1 | N14: 1 | O14: -1 | P14: 1 | Q14: 1 | R14: -1 | S14: -1
A15: -1 | B15: -1 | C15: -1 | D15: 1 | E15: -1 | F15: 1 | G15: -1 | H15: 1 | I15: 1 | J15: 1 | K15: 1 | L15: -1 | M15: -1 | N15: 1 | O15: 1 | P15: -1 | Q15: 1 | R15: 1 | S15: -1
A16: -1 | B16: -1 | C16: -1 | D16: -1 | E16: 1 | F16: -1 | G16: 1 | H16: -1 | I16: 1 | J16: 1 | K16: 1 | L16: 1 | M16: -1 | N16: -1 | O16: 1 | P16: 1 | Q16: -1 | R16: 1 | S16: 1
A17: 1 | B17: -1 | C17: -1 | D17: -1 | E17: -1 | F17: 1 | G17: -1 | H17: 1 | I17: -1 | J17: 1 | K17: 1 | L17: 1 | M17: 1 | N17: -1 | O17: -1 | P17: 1 | Q17: 1 | R17: -1 | S17: 1
A18: 1 | B18: 1 | C18: -1 | D18: -1 | E18: -1 | F18: -1 | G18: 1 | H18: -1 | I18: 1 | J18: -1 | K18: 1 | L18: 1 | M18: 1 | N18: 1 | O18: -1 | P18: -1 | Q18: 1 | R18: 1 | S18: -1
A19: -1 | B19: 1 | C19: 1 | D19: -1 | E19: -1 | F19: -1 | G19: -1 | H19: 1 | I19: -1 | J19: 1 | K19: -1 | L19: 1 | M19: 1 | N19: 1 | O19: 1 | P19: -1 | Q19: -1 | R19: 1 | S19: 1
A20: -1 | B20: -1 | C20: -1 | D20: -1 | E20: -1 | F20: -1 | G20: -1 | H20: -1 | I20: -1 | J20: -1 | K20: -1 | L20: -1 | M20: -1 | N20: -1 | O20: -1 | P20: -1 | Q20: -1 | R20: -1 | S20: -1

Sheet PB24
A1: 1 | B1: -1 | C1: -1 | D1: -1 | E1: -1 | F1: 1 | G1: -1 | H1: 1 | I1: -1 | J1: -1 | K1: 1 | L1: 1 | M1: -1 | N1: -1 | O1: 1 | P1: 1 | Q1: -1 | R1: 1 | S1: -1 | T1: 1 | U1: 1 | V1: 1 | W1: 1
A2: 1 | B2: 1 | C2: -1 | D2: -1 | E2: -1 | F2: -1 | G2: 1 | H2: -1 | I2: 1 | J2: -1 | K2: -1 | L2: 1 | M2: 1 | N2: -1 | O2: -1 | P2: 1 | Q2: 1 | R2: -1 | S2: 1 | T2: -1 | U2: 1 | V2: 1 | W2: 1
A3: 1 | B3: 1 | C3: 1 | D3: -1 | E3: -1 | F3: -1 | G3: -1 | H3: 1 | I3: -1 | J3: 1 | K3: -1 | L3: -1 | M3: 1 | N3: 1 | O3: -1 | P3: -1 | Q3: 1 | R3: 1 | S3: -1 | T3: 1 | U3: -1 | V3: 1 | W3: 1
A4: 1 | B4: 1 | C4: 1 | D4: 1 | E4: -1 | F4: -1 | G4: -1 | H4: -1 | I4: 1 | J4: -1 | K4: 1 | L4: -1 | M4: -1 | N4: 1 | O4: 1 | P4: -1 | Q4: -1 | R4: 1 | S4: 1 | T4: -1 | U4: 1 | V4: -1 | W4: 1
A5: 1 | B5: 1 | C5: 1 | D5: 1 | E5: 1 | F5: -1 | G5: -1 | H5: -1 | I5: -1 | J5: 1 | K5: -1 | L5: 1 | M5: -1 | N5: -1 | O5: 1 | P5: 1 | Q5: -1 | R5: -1 | S5: 1 | T5: 1 | U5: -1 | V5: 1 | W5: -1
A6: -1 | B6: 1 | C6: 1 | D6: 1 | E6: 1 | F6: 1 | G6: -1 | H6: -1 | I6: -1 | J6: -1 | K6: 1 | L6: -1 | M6: 1 | N6: -1 | O6: -1 | P6: 1 | Q6: 1 | R6: -1 | S6: -1 | T6: 1 | U6: 1 | V6: -1 | W6: 1
A7: 1 | B7: -1 | C7: 1 | D7: 1 | E7: 1 | F7: 1 | G7: 1 | H7: -1 | I7: -1 | J7: -1 | K7: -1 | L7: 1 | M7: -1 | N7: 1 | O7: -1 | P7: -1 | Q7: 1 | R7: 1 | S7: -1 | T7: -1 | U7: 1 | V7: 1 | W7: -1
A8: -1 | B8: 1 | C8: -1 | D8: 1 | E8: 1 | F8: 1 | G8: 1 | H8: 1 | I8: -1 | J8: -1 | K8: -1 | L8: -1 | M8: 1 | N8: -1 | O8: 1 | P8: -1 | Q8: -1 | R8: 1 | S8: 1 | T8: -1 | U8: -1 | V8: 1 | W8: 1
A9: 1 | B9: -1 | C9: 1 | D9: -1 | E9: 1 | F9: 1 | G9: 1 | H9: 1 | I9: 1 | J9: -1 | K9: -1 | L9: -1 | M9: -1 | N9: 1 | O9: -1 | P9: 1 | Q9: -1 | R9: -1 | S9: 1 | T9: 1 | U9: -1 | V9: -1 | W9: 1
A10: 1 | B10: 1 | C10: -1 | D10: 1 | E10: -1 | F10: 1 | G10: 1 | H10: 1 | I10: 1 | J10: 1 | K10: -1 | L10: -1 | M10: -1 | N10: -1 | O10: 1 | P10: -1 | Q10: 1 | R10: -1 | S10: -1 | T10: 1 | U10: 1 | V10: -1 | W10: -1
A11: -1 | B11: 1 | C11: 1 | D11: -1 | E11: 1 | F11: -1 | G11: 1 | H11: 1 | I11: 1 | J11: 1 | K11: 1 | L11: -1 | M11: -1 | N11: -1 | O11: -1 | P11: 1 | Q11: -1 | R11: 1 | S11: -1 | T11: -1 | U11: 1 | V11: 1 | W11: -1
A12: -1 | B12: -1 | C12: 1 | D12: 1 | E12: -1 | F12: 1 | G12: -1 | H12: 1 | I12: 1 | J12: 1 | K12: 1 | L12: 1 | M12: -1 | N12: -1 | O12: -1 | P12: -1 | Q12: 1 | R12: -1 | S12: 1 | T12: -1 | U12: -1 | V12: 1 | W12: 1
A13: 1 | B13: -1 | C13: -1 | D13: 1 | E13: 1 | F13: -1 | G13: 1 | H13: -1 | I13: 1 | J13: 1 | K13: 1 | L13: 1 | M13: 1 | N13: -1 | O13: -1 | P13: -1 | Q13: -1 | R13: 1 | S13: -1 | T13: 1 | U13: -1 | V13: -1 | W13: 1
A14: 1 | B14: 1 | C14: -1 | D14: -1 | E14: 1 | F14: 1 | G14: -1 | H14: 1 | I14: -1 | J14: 1 | K14: 1 | L14: 1 | M14: 1 | N14: 1 | O14: -1 | P14: -1 | Q14: -1 | R14: -1 | S14: 1 | T14: -1 | U14: 1 | V14: -1 | W14: -1
A15: -1 | B15: 1 | C15: 1 | D15: -1 | E15: -1 | F15: 1 | G15: 1 | H15: -1 | I15: 1 | J15: -1 | K15: 1 | L15: 1 | M15: 1 | N15: 1 | O15: 1 | P15: -1 | Q15: -1 | R15: -1 | S15: -1 | T15: 1 | U15: -1 | V15: 1 | W15: -1
A16: -1 | B16: -1 | C16: 1 | D16: 1 | E16: -1 | F16: -1 | G16: 1 | H16: 1 | I16: -1 | J16: 1 | K16: -1 | L16: 1 | M16: 1 | N16: 1 | O16: 1 | P16: 1 | Q16: -1 | R16: -1 | S16: -1 | T16: -1 | U16: 1 | V16: -1 | W16: 1
A17: 1 | B17: -1 | C17: -1 | D17: 1 | E17: 1 | F17: -1 | G17: -1 | H17: 1 | I17: 1 | J17: -1 | K17: 1 | L17: -1 | M17: 1 | N17: 1 | O17: 1 | P17: 1 | Q17: 1 | R17: -1 | S17: -1 | T17: -1 | U17: -1 | V17: 1 | W17: -1
A18: -1 | B18: 1 | C18: -1 | D18: -1 | E18: 1 | F18: 1 | G18: -1 | H18: -1 | I18: 1 | J18: 1 | K18: -1 | L18: 1 | M18: -1 | N18: 1 | O18: 1 | P18: 1 | Q18: 1 | R18: 1 | S18: -1 | T18: -1 | U18: -1 | V18: -1 | W18: 1
A19: 1 | B19: -1 | C19: 1 | D19: -1 | E19: -1 | F19: 1 | G19: 1 | H19: -1 | I19: -1 | J19: 1 | K19: 1 | L19: -1 | M19: 1 | N19: -1 | O19: 1 | P19: 1 | Q19: 1 | R19: 1 | S19: 1 | T19: -1 | U19: -1 | V19: -1 | W19: -1
A20: -1 | B20: 1 | C20: -1 | D20: 1 | E20: -1 | F20: -1 | G20: 1 | H20: 1 | I20: -1 | J20: -1 | K20: 1 | L20: 1 | M20: -1 | N20: 1 | O20: -1 | P20: 1 | Q20: 1 | R20: 1 | S20: 1 | T20: 1 | U20: -1 | V20: -1 | W20: -1
A21: -1 | B21: -1 | C21: 1 | D21: -1 | E21: 1 | F21: -1 | G21: -1 | H21: 1 | I21: 1 | J21: -1 | K21: -1 | L21: 1 | M21: 1 | N21: -1 | O21: 1 | P21: -1 | Q21: 1 | R21: 1 | S21: 1 | T21: 1 | U21: 1 | V21: -1 | W21: -1
A22: -1 | B22: -1 | C22: -1 | D22: 1 | E22: -1 | F22: 1 | G22: -1 | H22: -1 | I22: 1 | J22: 1 | K22: -1 | L22: -1 | M22: 1 | N22: 1 | O22: -1 | P22: 1 | Q22: -1 | R22: 1 | S22: 1 | T22: 1 | U22: 1 | V22: 1 | W22: -1
A23: -1 | B23: -1 | C23: -1 | D23: -1 | E23: 1 | F23: -1 | G23: 1 | H23: -1 | I23: -1 | J23: 1 | K23: 1 | L23: -1 | M23: -1 | N23: 1 | O23: 1 | P23: -1 | Q23: 1 | R23: -1 | S23: 1 | T23: 1 | U23: 1 | V23: 1 | W23: 1
A24: -1 | B24: -1 | C24: -1 | D24: -1 | E24: -1 | F24: -1 | G24: -1 | H24: -1 | I24: -1 | J24: -1 | K24: -1 | L24: -1 | M24: -1 | N24: -1 | O24: -1 | P24: -1 | Q24: -1 | R24: -1 | S24: -1 | T24: -1 | U24: -1 | V24: -1 | W24: -1

Sheet PB28
A1: 1 | B1: -1 | C1: 1 | D1: 1 | E1: 1 | F1: 1 | G1: -1 | H1: -1 | I1: -1 | J1: -1 | K1: 1 | L1: -1 | M1: -1 | N1: -1 | O1: 1 | P1: -1 | Q1: -1 | R1: 1 | S1: 1 | T1: 1 | U1: -1 | V1: 1 | W1: -1 | X1: 1 | Y1: 1 | Z1: -1 | AA1: 1
A2: 1 | B2: 1 | C2: -1 | D2: 1 | E2: 1 | F2: 1 | G2: -1 | H2: -1 | I2: -1 | J2: -1 | K2: -1 | L2: 1 | M2: 1 | N2: -1 | O2: -1 | P2: 1 | Q2: -1 | R2: -1 | S2: -1 | T2: 1 | U2: 1 | V2: 1 | W2: 1 | X2: -1 | Y2: 1 | Z2: 1 | AA2: -1
A3: -1 | B3: 1 | C3: 1 | D3: 1 | E3: 1 | F3: 1 | G3: -1 | H3: -1 | I3: -1 | J3: 1 | K3: -1 | L3: -1 | M3: -1 | N3: 1 | O3: -1 | P3: -1 | Q3: 1 | R3: -1 | S3: 1 | T3: -1 | U3: 1 | V3: -1 | W3: 1 | X3: 1 | Y3: -1 | Z3: 1 | AA3: 1
A4: -1 | B4: -1 | C4: -1 | D4: 1 | E4: -1 | F4: 1 | G4: 1 | H4: 1 | I4: 1 | J4: -1 | K4: -1 | L4: 1 | M4: -1 | N4: 1 | O4: -1 | P4: -1 | Q4: -1 | R4: 1 | S4: 1 | T4: -1 | U4: 1 | V4: 1 | W4: 1 | X4: -1 | Y4: 1 | Z4: -1 | AA4: 1
A5: -1 | B5: -1 | C5: -1 | D5: 1 | E5: 1 | F5: -1 | G5: 1 | H5: 1 | I5: 1 | J5: 1 | K5: -1 | L5: -1 | M5: -1 | N5: -1 | O5: 1 | P5: 1 | Q5: -1 | R5: -1 | S5: 1 | T5: 1 | U5: -1 | V5: -1 | W5: 1 | X5: 1 | Y5: 1 | Z5: 1 | AA5: -1
A6: -1 | B6: -1 | C6: -1 | D6: -1 | E6: 1 | F6: 1 | G6: 1 | H6: 1 | I6: 1 | J6: -1 | K6: 1 | L6: -1 | M6: 1 | N6: -1 | O6: -1 | P6: -1 | Q6: 1 | R6: -1 | S6: -1 | T6: 1 | U6: 1 | V6: 1 | W6: -1 | X6: 1 | Y6: -1 | Z6: 1 | AA6: 1
A7: 1 | B7: 1 | C7: 1 | D7: -1 | E7: -1 | F7: -1 | G7: 1 | H7: -1 | I7: 1 | J7: -1 | K7: -1 | L7: 1 | M7: -1 | N7: -1 | O7: 1 | P7: -1 | Q7: 1 | R7: -1 | S7: 1 | T7: -1 | U7: 1 | V7: 1 | W7: -1 | X7: 1 | Y7: 1 | Z7: 1 | AA7: -1
A8: 1 | B8: 1 | C8: 1 | D8: -1 | E8: -1 | F8: -1 | G8: 1 | H8: 1 | I8: -1 | J8: 1 | K8: -1 | L8: -1 | M8: 1 | N8: -1 | O8: -1 | P8: -1 | Q8: -1 | R8: 1 | S8: 1 | T8: 1 | U8: -1 | V8: 1 | W8: 1 | X8: -1 | Y8: -1 | Z8: 1 | AA8: 1
A9: 1 | B9: 1 | C9: 1 | D9: -1 | E9: -1 | F9: -1 | G9: -1 | H9: 1 | I9: 1 | J9: -1 | K9: 1 | L9: -1 | M9: -1 | N9: 1 | O9: -1 | P9: 1 | Q9: -1 | R9: -1 | S9: -1 | T9: 1 | U9: 1 | V9: -1 | W9: 1 | X9: 1 | Y9: 1 | Z9: -1 | AA9: 1
A10: 1 | B10: 1 | C10: -1 | D10: 1 | E10: -1 | F10: 1 | G10: 1 | H10: -1 | I10: 1 | J10: 1 | K10: -1 | L10: 1 | M10: 1 | N10: 1 | O10: 1 | P10: -1 | Q10: -1 | R10: -1 | S10: -1 | T10: 1 | U10: -1 | V10: -1 | W10: -1 | X10: 1 | Y10: -1 | Z10: -1 | AA10: 1
A11: -1 | B11: 1 | C11: 1 | D11: 1 | E11: 1 | F11: -1 | G11: 1 | H11: 1 | I11: -1 | J11: 1 | K11: 1 | L11: -1 | M11: 1 | N11: 1 | O11: 1 | P11: -1 | Q11: -1 | R11: -1 | S11: -1 | T11: -1 | U11: 1 | V11: 1 | W11: -1 | X11: -1 | Y11: 1 | Z11: -1 | AA11: -1
A12: 1 | B12: -1 | C12: 1 | D12: -1 | E12: 1 | F12: 1 | G12: -1 | H12: 1 | I12: 1 | J12: -1 | K12: 1 | L12: 1 | M12: 1 | N12: 1 | O12: 1 | P12: -1 | Q12: -1 | R12: -1 | S12: 1 | T12: -1 | U12: -1 | V12: -1 | W12: 1 | X12: -1 | Y12: -1 | Z12: 1 | AA12: -1
A13: 1 | B13: -1 | C13: 1 | D13: 1 | E13: 1 | F13: -1 | G13: 1 | H13: -1 | I13: 1 | J13: -1 | K13: -1 | L13: -1 | M13: 1 | N13: -1 | O13: 1 | P13: 1 | Q13: 1 | R13: 1 | S13: -1 | T13: -1 | U13: 1 | V13: -1 | W13: 1 | X13: -1 | Y13: -1 | Z13: -1 | AA13: 1
A14: 1 | B14: 1 | C14: -1 | D14: -1 | E14: 1 | F14: 1 | G14: 1 | H14: 1 | I14: -1 | J14: -1 | K14: -1 | L14: -1 | M14: 1 | N14: 1 | O14: -1 | P14: 1 | Q14: 1 | R14: 1 | S14: 1 | T14: -1 | U14: -1 | V14: -1 | W14: -1 | X14: 1 | Y14: 1 | Z14: -1 | AA14: -1
A15: -1 | B15: 1 | C15: 1 | D15: 1 | E15: -1 | F15: 1 | G15: -1 | H15: 1 | I15: 1 | J15: -1 | K15: -1 | L15: -1 | M15: -1 | N15: 1 | O15: 1 | P15: 1 | Q15: 1 | R15: 1 | S15: -1 | T15: 1 | U15: -1 | V15: 1 | W15: -1 | X15: -1 | Y15: -1 | Z15: 1 | AA15: -1
A16: 1 | B16: -1 | C16: 1 | D16: 1 | E16: -1 | F16: 1 | G16: 1 | H16: 1 | I16: -1 | J16: 1 | K16: 1 | L16: 1 | M16: -1 | N16: -1 | O16: -1 | P16: 1 | Q16: -1 | R16: 1 | S16: -1 | T16: -1 | U16: 1 | V16: -1 | W16: -1 | X16: 1 | Y16: -1 | Z16: 1 | AA16: -1
A17: 1 | B17: 1 | C17: -1 | D17: 1 | E17: 1 | F17: -1 | G17: -1 | H17: 1 | I17: 1 | J17: 1 | K17: 1 | L17: 1 | M17: -1 | N17: -1 | O17: -1 | P17: 1 | Q17: 1 | R17: -1 | S17: 1 | T17: -1 | U17: -1 | V17: 1 | W17: -1 | X17: -1 | Y17: -1 | Z17: -1 | AA17: 1
A18: -1 | B18: 1 | C18: 1 | D18: -1 | E18: 1 | F18: 1 | G18: 1 | H18: -1 | I18: 1 | J18: 1 | K18: 1 | L18: 1 | M18: -1 | N18: -1 | O18: -1 | P18: -1 | Q18: 1 | R18: 1 | S18: -1 | T18: 1 | U18: -1 | V18: -1 | W18: 1 | X18: -1 | Y18: 1 | Z18: -1 | AA18: -1
A19: -1 | B19: 1 | C19: -1 | D19: -1 | E19: -1 | F19: 1 | G19: -1 | H19: -1 | I19: 1 | J19: 1 | K19: 1 | L19: -1 | M19: 1 | N19: -1 | O19: 1 | P19: 1 | Q19: -1 | R19: 1 | S19: 1 | T19: -1 | U19: 1 | V19: 1 | W19: 1 | X19: 1 | Y19: -1 | Z19: -1 | AA19: -1
A20: -1 | B20: -1 | C20: 1 | D20: 1 | E20: -1 | F20: -1 | G20: 1 | H20: -1 | I20: -1 | J20: -1 | K20: 1 | L20: 1 | M20: 1 | N20: 1 | O20: -1 | P20: 1 | Q20: 1 | R20: -1 | S20: 1 | T20: 1 | U20: -1 | V20: 1 | W20: 1 | X20: 1 | Y20: -1 | Z20: -1 | AA20: -1
A21: 1 | B21: -1 | C21: -1 | D21: -1 | E21: 1 | F21: -1 | G21: -1 | H21: 1 | I21: -1 | J21: 1 | K21: -1 | L21: 1 | M21: -1 | N21: 1 | O21: 1 | P21: -1 | Q21: 1 | R21: 1 | S21: -1 | T21: 1 | U21: 1 | V21: 1 | W21: 1 | X21: 1 | Y21: -1 | Z21: -1 | AA21: -1
A22: -1 | B22: -1 | C22: 1 | D22: -1 | E22: 1 | F22: -1 | G22: -1 | H22: -1 | I22: 1 | J22: 1 | K22: -1 | L22: 1 | M22: 1 | N22: 1 | O22: -1 | P22: 1 | Q22: -1 | R22: 1 | S22: -1 | T22: -1 | U22: -1 | V22: 1 | W22: -1 | X22: 1 | Y22: 1 | Z22: 1 | AA22: 1
A23: 1 | B23: -1 | C23: -1 | D23: -1 | E23: -1 | F23: 1 | G23: 1 | H23: -1 | I23: -1 | J23: 1 | K23: 1 | L23: -1 | M23: -1 | N23: 1 | O23: 1 | P23: 1 | Q23: 1 | R23: -1 | S23: -1 | T23: -1 | U23: -1 | V23: 1 | W23: 1 | X23: -1 | Y23: 1 | Z23: 1 | AA23: 1
A24: -1 | B24: 1 | C24: -1 | D24: 1 | E24: -1 | F24: -1 | G24: -1 | H24: 1 | I24: -1 | J24: -1 | K24: 1 | L24: 1 | M24: 1 | N24: -1 | O24: 1 | P24: -1 | Q24: 1 | R24: 1 | S24: -1 | T24: -1 | U24: -1 | V24: -1 | W24: 1 | X24: 1 | Y24: 1 | Z24: 1 | AA24: 1
A25: -1 | B25: -1 | C25: 1 | D25: -1 | E25: -1 | F25: 1 | G25: -1 | H25: 1 | I25: -1 | J25: 1 | K25: -1 | L25: 1 | M25: 1 | N25: -1 | O25: 1 | P25: 1 | Q25: 1 | R25: -1 | S25: 1 | T25: 1 | U25: 1 | V25: -1 | W25: -1 | X25: -1 | Y25: 1 | Z25: -1 | AA25: 1
A26: 1 | B26: -1 | C26: -1 | D26: 1 | E26: -1 | F26: -1 | G26: -1 | H26: -1 | I26: 1 | J26: 1 | K26: 1 | L26: -1 | M26: 1 | N26: 1 | O26: -1 | P26: -1 | Q26: 1 | R26: 1 | S26: 1 | T26: 1 | U26: 1 | V26: -1 | W26: -1 | X26: -1 | Y26: 1 | Z26: 1 | AA26: -1
A27: -1 | B27: 1 | C27: -1 | D27: -1 | E27: 1 | F27: -1 | G27: 1 | H27: -1 | I27: -1 | J27: -1 | K27: 1 | L27: 1 | M27: -1 | N27: 1 | O27: 1 | P27: 1 | Q27: -1 | R27: 1 | S27: 1 | T27: 1 | U27: 1 | V27: -1 | W27: -1 | X27: -1 | Y27: -1 | Z27: 1 | AA27: 1
A28: -1 | B28: -1 | C28: -1 | D28: -1 | E28: -1 | F28: -1 | G28: -1 | H28: -1 | I28: -1 | J28: -1 | K28: -1 | L28: -1 | M28: -1 | N28: -1 | O28: -1 | P28: -1 | Q28: -1 | R28: -1 | S28: -1 | T28: -1 | U28: -1 | V28: -1 | W28: -1 | X28: -1 | Y28: -1 | Z28: -1 | AA28: -1

Sheet PB32
A1: -1 | B1: 1 | C1: -1 | D1: -1 | E1: 1 | F1: -1 | G1: 1 | H1: 1 | I1: -1 | J1: -1 | K1: 1 | L1: 1 | M1: 1 | N1: 1 | O1: 1 | P1: -1 | Q1: -1 | R1: -1 | S1: 1 | T1: 1 | U1: -1 | V1: 1 | W1: 1 | X1: 1 | Y1: -1 | Z1: 1 | AA1: -1 | AB1: 1 | AC1: -1 | AD1: -1 | AE1: -1
A2: -1 | B2: -1 | C2: 1 | D2: -1 | E2: -1 | F2: 1 | G2: -1 | H2: 1 | I2: 1 | J2: -1 | K2: -1 | L2: 1 | M2: 1 | N2: 1 | O2: 1 | P2: 1 | Q2: -1 | R2: -1 | S2: -1 | T2: 1 | U2: 1 | V2: -1 | W2: 1 | X2: 1 | Y2: 1 | Z2: -1 | AA2: 1 | AB2: -1 | AC2: 1 | AD2: -1 | AE2: -1
A3: -1 | B3: -1 | C3: -1 | D3: 1 | E3: -1 | F3: -1 | G3: 1 | H3: -1 | I3: 1 | J3: 1 | K3: -1 | L3: -1 | M3: 1 | N3: 1 | O3: 1 | P3: 1 | Q3: 1 | R3: -1 | S3: -1 | T3: -1 | U3: 1 | V3: 1 | W3: -1 | X3: 1 | Y3: 1 | Z3: 1 | AA3: -1 | AB3: 1 | AC3: -1 | AD3: 1 | AE3: -1
A4: -1 | B4: -1 | C4: -1 | D4: -1 | E4: 1 | F4: -1 | G4: -1 | H4: 1 | I4: -1 | J4: 1 | K4: 1 | L4: -1 | M4: -1 | N4: 1 | O4: 1 | P4: 1 | Q4: 1 | R4: 1 | S4: -1 | T4: -1 | U4: -1 | V4: 1 | W4: 1 | X4: -1 | Y4: 1 | Z4: 1 | AA4: 1 | AB4: -1 | AC4: 1 | AD4: -1 | AE4: 1
A5: 1 | B5: -1 | C5: -1 | D5: -1 | E5: -1 | F5: 1 | G5: -1 | H5: -1 | I5: 1 | J5: -1 | K5: 1 | L5: 1 | M5: -1 | N5: -1 | O5: 1 | P5: 1 | Q5: 1 | R5: 1 | S5: 1 | T5: -1 | U5: -1 | V5: -1 | W5: 1 | X5: 1 | Y5: -1 | Z5: 1 | AA5: 1 | AB5: 1 | AC5: -1 | AD5: 1 | AE5: -1
A6: -1 | B6: 1 | C6: -1 | D6: -1 | E6: -1 | F6: -1 | G6: 1 | H6: -1 | I6: -1 | J6: 1 | K6: -1 | L6: 1 | M6: 1 | N6: -1 | O6: -1 | P6: 1 | Q6: 1 | R6: 1 | S6: 1 | T6: 1 | U6: -1 | V6: -1 | W6: -1 | X6: 1 | Y6: 1 | Z6: -1 | AA6: 1 | AB6: 1 | AC6: 1 | AD6: -1 | AE6: 1
A7: 1 | B7: -1 | C7: 1 | D7: -1 | E7: -1 | F7: -1 | G7: -1 | H7: 1 | I7: -1 | J7: -1 | K7: 1 | L7: -1 | M7: 1 | N7: 1 | O7: -1 | P7: -1 | Q7: 1 | R7: 1 | S7: 1 | T7: 1 | U7: 1 | V7: -1 | W7: -1 | X7: -1 | Y7: 1 | Z7: 1 | AA7: -1 | AB7: 1 | AC7: 1 | AD7: 1 | AE7: -1
A8: -1 | B8: 1 | C8: -1 | D8: 1 | E8: -1 | F8: -1 | G8: -1 | H8: -1 | I8: 1 | J8: -1 | K8: -1 | L8: 1 | M8: -1 | N8: 1 | O8: 1 | P8: -1 | Q8: -1 | R8: 1 | S8: 1 | T8: 1 | U8: 1 | V8: 1 | W8: -1 | X8: -1 | Y8: -1 | Z8: 1 | AA8: 1 | AB8: -1 | AC8: 1 | AD8: 1 | AE8: 1
A9: 1 | B9: -1 | C9: 1 | D9: -1 | E9: 1 | F9: -1 | G9: -1 | H9: -1 | I9: -1 | J9: 1 | K9: -1 | L9: -1 | M9: 1 | N9: -1 | O9: 1 | P9: 1 | Q9: -1 | R9: -1 | S9: 1 | T9: 1 | U9: 1 | V9: 1 | W9: 1 | X9: -1 | Y9: -1 | Z9: -1 | AA9: 1 | AB9: 1 | AC9: -1 | AD9: 1 | AE9: 1
A10: 1 | B10: 1 | C10: -1 | D10: 1 | E10: -1 | F10: 1 | G10: -1 | H10: -1 | I10: -1 | J10: -1 | K10: 1 | L10: -1 | M10: -1 | N10: 1 | O10: -1 | P10: 1 | Q10: 1 | R10: -1 | S10: -1 | T10: 1 | U10: 1 | V10: 1 | W10: 1 | X10: 1 | Y10: -1 | Z10: -1 | AA10: -1 | AB10: 1 | AC10: 1 | AD10: -1 | AE10: 1
A11: 1 | B11: 1 | C11: 1 | D11: -1 | E11: 1 | F11: -1 | G11: 1 | H11: -1 | I11: -1 | J11: -1 | K11: -1 | L11: 1 | M11: -1 | N11: -1 | O11: 1 | P11: -1 | Q11: 1 | R11: 1 | S11: -1 | T11: -1 | U11: 1 | V11: 1 | W11: 1 | X11: 1 | Y11: 1 | Z11: -1 | AA11: -1 | AB11: -1 | AC11: 1 | AD11: 1 | AE11: -1
A12: -1 | B12: 1 | C12: 1 | D12: 1 | E12: -1 | F12: 1 | G12: -1 | H12: 1 | I12: -1 | J12: -1 | K12: -1 | L12: -1 | M12: 1 | N12: -1 | O12: -1 | P12: 1 | Q12: -1 | R12: 1 | S12: 1 | T12: -1 | U12: -1 | V12: 1 | W12: 1 | X12: 1 | Y12: 1 | Z12: 1 | AA12: -1 | AB12: -1 | AC12: -1 | AD12: 1 | AE12: 1
A13: 1 | B13: -1 | C13: 1 | D13: 1 | E13: 1 | F13: -1 | G13: 1 | H13: -1 | I13: 1 | J13: -1 | K13: -1 | L13: -1 | M13: -1 | N13: 1 | O13: -1 | P13: -1 | Q13: 1 | R13: -1 | S13: 1 | T13: 1 | U13: -1 | V13: -1 | W13: 1 | X13: 1 | Y13: 1 | Z13: 1 | AA13: 1 | AB13: -1 | AC13: -1 | AD13: -1 | AE13: 1
A14: 1 | B14: 1 | C14: -1 | D14: 1 | E14: 1 | F14: 1 | G14: -1 | H14: 1 | I14: -1 | J14: 1 | K14: -1 | L14: -1 | M14: -1 | N14: -1 | O14: 1 | P14: -1 | Q14: -1 | R14: 1 | S14: -1 | T14: 1 | U14: 1 | V14: -1 | W14: -1 | X14: 1 | Y14: 1 | Z14: 1 | AA14: 1 | AB14: 1 | AC14: -1 | AD14: -1 | AE14: -1
A15: -1 | B15: 1 | C15: 1 | D15: -1 | E15: 1 | F15: 1 | G15: 1 | H15: -1 | I15: 1 | J15: -1 | K15: 1 | L15: -1 | M15: -1 | N15: -1 | O15: -1 | P15: 1 | Q15: -1 | R15: -1 | S15: 1 | T15: -1 | U15: 1 | V15: 1 | W15: -1 | X15: -1 | Y15: 1 | Z15: 1 | AA15: 1 | AB15: 1 | AC15: 1 | AD15: -1 | AE15: -1
A16: -1 | B16: -1 | C16: 1 | D16: 1 | E16: -1 | F16: 1 | G16: 1 | H16: 1 | I16: -1 | J16: 1 | K16: -1 | L16: 1 | M16: -1 | N16: -1 | O16: -1 | P16: -1 | Q16: 1 | R16: -1 | S16: -1 | T16: 1 | U16: -1 | V16: 1 | W16: 1 | X16: -1 | Y16: -1 | Z16: 1 | AA16: 1 | AB16: 1 | AC16: 1 | AD16: 1 | AE16: -1
A17: -1 | B17: -1 | C17: -1 | D17: 1 | E17: 1 | F17: -1 | G17: 1 | H17: 1 | I17: 1 | J17: -1 | K17: 1 | L17: -1 | M17: 1 | N17: -1 | O17: -1 | P17: -1 | Q17: -1 | R17: 1 | S17: -1 | T17: -1 | U17: 1 | V17: -1 | W17: 1 | X17: 1 | Y17: -1 | Z17: -1 | AA17: 1 | AB17: 1 | AC17: 1 | AD17: 1 | AE17: 1
A18: 1 | B18: -1 | C18: -1 | D18: -1 | E18: 1 | F18: 1 | G18: -1 | H18: 1 | I18: 1 | J18: 1 | K18: -1 | L18: 1 | M18: -1 | N18: 1 | O18: -1 | P18: -1 | Q18: -1 | R18: -1 | S18: 1 | T18: -1 | U18: -1 | V18: 1 | W18: -1 | X18: 1 | Y18: 1 | Z18: -1 | AA18: -1 | AB18: 1 | AC18: 1 | AD18: 1 | AE18: 1
A19: 1 | B19: 1 | C19: -1 | D19: -1 | E19: -1 | F19: 1 | G19: 1 | H19: -1 | I19: 1 | J19: 1 | K19: 1 | L19: -1 | M19: 1 | N19: -1 | O19: 1 | P19: -1 | Q19: -1 | R19: -1 | S19: -1 | T19: 1 | U19: -1 | V19: -1 | W19: 1 | X19: -1 | Y19: 1 | Z19: 1 | AA19: -1 | AB19: -1 | AC19: 1 | AD19: 1 | AE19: 1
A20: 1 | B20: 1 | C20: 1 | D20: -1 | E20: -1 | F20: -1 | G20: 1 | H20: 1 | I20: -1 | J20: 1 | K20: 1 | L20: 1 | M20: -1 | N20: 1 | O20: -1 | P20: 1 | Q20: -1 | R20: -1 | S20: -1 | T20: -1 | U20: 1 | V20: -1 | W20: -1 | X20: 1 | Y20: -1 | Z20: 1 | AA20: 1 | AB20: -1 | AC20: -1 | AD20: 1 | AE20: 1
A21: 1 | B21: 1 | C21: 1 | D21: 1 | E21: -1 | F21: -1 | G21: -1 | H21: 1 | I21: 1 | J21: -1 | K21: 1 | L21: 1 | M21: 1 | N21: -1 | O21: 1 | P21: -1 | Q21: 1 | R21: -1 | S21: -1 | T21: -1 | U21: -1 | V21: 1 | W21: -1 | X21: -1 | Y21: 1 | Z21: -1 | AA21: 1 | AB21: 1 | AC21: -1 | AD21: -1 | AE21: 1
A22: 1 | B22: 1 | C22: 1 | D22: 1 | E22: 1 | F22: -1 | G22: -1 | H22: -1 | I22: 1 | J22: 1 | K22: -1 | L22: 1 | M22: 1 | N22: 1 | O22: -1 | P22: 1 | Q22: -1 | R22: 1 | S22: -1 | T22: -1 | U22: -1 | V22: -1 | W22: 1 | X22: -1 | Y22: -1 | Z22: 1 | AA22: -1 | AB22: 1 | AC22: 1 | AD22: -1 | AE22: -1
A23: -1 | B23: 1 | C23: 1 | D23: 1 | E23: 1 | F23: 1 | G23: -1 | H23: -1 | I23: -1 | J23: 1 | K23: 1 | L23: -1 | M23: 1 | N23: 1 | O23: 1 | P23: -1 | Q23: 1 | R23: -1 | S23: 1 | T23: -1 | U23: -1 | V23: -1 | W23: -1 | X23: 1 | Y23: -1 | Z23: -1 | AA23: 1 | AB23: -1 | AC23: 1 | AD23: 1 | AE23: -1
A24: -1 | B24: -1 | C24: 1 | D24: 1 | E24: 1 | F24: 1 | G24: 1 | H24: -1 | I24: -1 | J24: -1 | K24: 1 | L24: 1 | M24: -1 | N24: 1 | O24: 1 | P24: 1 | Q24: -1 | R24: 1 | S24: -1 | T24: 1 | U24: -1 | V24: -1 | W24: -1 | X24: -1 | Y24: 1 | Z24: -1 | AA24: -1 | AB24: 1 | AC24: -1 | AD24: 1 | AE24: 1
A25: 1 | B25: -1 | C25: -1 | D25: 1 | E25: 1 | F25: 1 | G25: 1 | H25: 1 | I25: -1 | J25: -1 | K25: -1 | L25: 1 | M25: 1 | N25: -1 | O25: 1 | P25: 1 | Q25: 1 | R25: -1 | S25: 1 | T25: -1 | U25: 1 | V25: -1 | W25: -1 | X25: -1 | Y25: -1 | Z25: 1 | AA25: -1 | AB25: -1 | AC25: 1 | AD25: -1 | AE25: 1
A26: 1 | B26: 1 | C26: -1 | D26: -1 | E26: 1 | F26: 1 | G26: 1 | H26: 1 | I26: 1 | J26: -1 | K26: -1 | L26: -1 | M26: 1 | N26: 1 | O26: -1 | P26: 1 | Q26: 1 | R26: 1 | S26: -1 | T26: 1 | U26: -1 | V26: 1 | W26: -1 | X26: -1 | Y26: -1 | Z26: -1 | AA26: 1 | AB26: -1 | AC26: -1 | AD26: 1 | AE26: -1
A27: -1 | B27: 1 | C27: 1 | D27: -1 | E27: -1 | F27: 1 | G27: 1 | H27: 1 | I27: 1 | J27: 1 | K27: -1 | L27: -1 | M27: -1 | N27: 1 | O27: 1 | P27: -1 | Q27: 1 | R27: 1 | S27: 1 | T27: -1 | U27: 1 | V27: -1 | W27: 1 | X27: -1 | Y27: -1 | Z27: -1 | AA27: -1 | AB27: 1 | AC27: -1 | AD27: -1 | AE27: 1
A28: 1 | B28: -1 | C28: 1 | D28: 1 | E28: -1 | F28: -1 | G28: 1 | H28: 1 | I28: 1 | J28: 1 | K28: 1 | L28: -1 | M28: -1 | N28: -1 | O28: 1 | P28: 1 | Q28: -1 | R28: 1 | S28: 1 | T28: 1 | U28: -1 | V28: 1 | W28: -1 | X28: 1 | Y28: -1 | Z28: -1 | AA28: -1 | AB28: -1 | AC28: 1 | AD28: -1 | AE28: -1
A29: -1 | B29: 1 | C29: -1 | D29: 1 | E29: 1 | F29: -1 | G29: -1 | H29: 1 | I29: 1 | J29: 1 | K29: 1 | L29: 1 | M29: -1 | N29: -1 | O29: -1 | P29: 1 | Q29: 1 | R29: -1 | S29: 1 | T29: 1 | U29: 1 | V29: -1 | W29: 1 | X29: -1 | Y29: 1 | Z29: -1 | AA29: -1 | AB29: -1 | AC29: -1 | AD29: 1 | AE29: -1
A30: -1 | B30: -1 | C30: 1 | D30: -1 | E30: 1 | F30: 1 | G30: -1 | H30: -1 | I30: 1 | J30: 1 | K30: 1 | L30: 1 | M30: 1 | N30: -1 | O30: -1 | P30: -1 | Q30: 1 | R30: 1 | S30: -1 | T30: 1 | U30: 1 | V30: 1 | W30: -1 | X30: 1 | Y30: -1 | Z30: 1 | AA30: -1 | AB30: -1 | AC30: -1 | AD30: -1 | AE30: 1
A31: 1 | B31: -1 | C31: -1 | D31: 1 | E31: -1 | F31: 1 | G31: 1 | H31: -1 | I31: -1 | J31: 1 | K31: 1 | L31: 1 | M31: 1 | N31: 1 | O31: -1 | P31: -1 | Q31: -1 | R31: 1 | S31: 1 | T31: -1 | U31: 1 | V31: 1 | W31: 1 | X31: -1 | Y31: 1 | Z31: -1 | AA31: 1 | AB31: -1 | AC31: -1 | AD31: -1 | AE31: -1
A32: -1 | B32: -1 | C32: -1 | D32: -1 | E32: -1 | F32: -1 | G32: -1 | H32: -1 | I32: -1 | J32: -1 | K32: -1 | L32: -1 | M32: -1 | N32: -1 | O32: -1 | P32: -1 | Q32: -1 | R32: -1 | S32: -1 | T32: -1 | U32: -1 | V32: -1 | W32: -1 | X32: -1 | Y32: -1 | Z32: -1 | AA32: -1 | AB32: -1 | AC32: -1 | AD32: -1 | AE32: -1

Sheet L4
A1: -1 | B1: -1 | C1: -1
A2: -1 | B2: 1 | C2: 1
A3: 1 | B3: -1 | C3: 1
A4: 1 | B4: 1 | C4: -1

Sheet L8
A1: -1 | B1: -1 | C1: -1 | D1: -1 | E1: -1 | F1: -1 | G1: -1
A2: -1 | B2: -1 | C2: -1 | D2: 1 | E2: 1 | F2: 1 | G2: 1
A3: -1 | B3: 1 | C3: 1 | D3: -1 | E3: -1 | F3: 1 | G3: 1
A4: -1 | B4: 1 | C4: 1 | D4: 1 | E4: 1 | F4: -1 | G4: -1
A5: 1 | B5: -1 | C5: 1 | D5: -1 | E5: 1 | F5: -1 | G5: 1
A6: 1 | B6: -1 | C6: 1 | D6: 1 | E6: -1 | F6: 1 | G6: -1
A7: 1 | B7: 1 | C7: -1 | D7: -1 | E7: 1 | F7: 1 | G7: -1
A8: 1 | B8: 1 | C8: -1 | D8: 1 | E8: -1 | F8: -1 | G8: 1

Sheet L12
A1: -1 | B1: -1 | C1: -1 | D1: -1 | E1: -1 | F1: -1 | G1: -1 | H1: -1 | I1: -1 | J1: -1 | K1: -1
A2: -1 | B2: -1 | C2: -1 | D2: -1 | E2: -1 | F2: 1 | G2: 1 | H2: 1 | I2: 1 | J2: 1 | K2: 1
A3: -1 | B3: -1 | C3: 1 | D3: 1 | E3: 1 | F3: -1 | G3: -1 | H3: -1 | I3: 1 | J3: 1 | K3: 1
A4: -1 | B4: 1 | C4: -1 | D4: 1 | E4: 1 | F4: -1 | G4: 1 | H4: 1 | I4: -1 | J4: -1 | K4: 1
A5: -1 | B5: 1 | C5: 1 | D5: -1 | E5: 1 | F5: 1 | G5: -1 | H5: 1 | I5: -1 | J5: 1 | K5: -1
A6: -1 | B6: 1 | C6: 1 | D6: 1 | E6: -1 | F6: 1 | G6: 1 | H6: -1 | I6: 1 | J6: -1 | K6: -1
A7: 1 | B7: -1 | C7: 1 | D7: 1 | E7: -1 | F7: -1 | G7: 1 | H7: 1 | I7: -1 | J7: 1 | K7: -1
A8: 1 | B8: -1 | C8: 1 | D8: -1 | E8: 1 | F8: 1 | G8: 1 | H8: -1 | I8: -1 | J8: -1 | K8: 1
A9: 1 | B9: -1 | C9: -1 | D9: 1 | E9: 1 | F9: 1 | G9: -1 | H9: 1 | I9: 1 | J9: -1 | K9: -1
A10: 1 | B10: 1 | C10: 1 | D10: -1 | E10: -1 | F10: -1 | G10: -1 | H10: 1 | I10: 1 | J10: -1 | K10: 1
A11: 1 | B11: 1 | C11: -1 | D11: 1 | E11: -1 | F11: 1 | G11: -1 | H11: -1 | I11: -1 | J11: 1 | K11: 1
A12: 1 | B12: 1 | C12: -1 | D12: -1 | E12: 1 | F12: -1 | G12: 1 | H12: -1 | I12: 1 | J12: 1 | K12: -1

Sheet L16
A1: -1 | B1: -1 | C1: -1 | D1: -1 | E1: -1 | F1: -1 | G1: -1 | H1: -1 | I1: -1 | J1: -1 | K1: -1 | L1: -1 | M1: -1 | N1: -1 | O1: -1
A2: -1 | B2: -1 | C2: -1 | D2: -1 | E2: -1 | F2: -1 | G2: -1 | H2: 1 | I2: 1 | J2: 1 | K2: 1 | L2: 1 | M2: 1 | N2: 1 | O2: 1
A3: -1 | B3: -1 | C3: -1 | D3: 1 | E3: 1 | F3: 1 | G3: 1 | H3: -1 | I3: -1 | J3: -1 | K3: -1 | L3: 1 | M3: 1 | N3: 1 | O3: 1
A4: -1 | B4: -1 | C4: -1 | D4: 1 | E4: 1 | F4: 1 | G4: 1 | H4: 1 | I4: 1 | J4: 1 | K4: 1 | L4: -1 | M4: -1 | N4: -1 | O4: -1
A5: -1 | B5: 1 | C5: 1 | D5: -1 | E5: -1 | F5: 1 | G5: 1 | H5: -1 | I5: -1 | J5: 1 | K5: 1 | L5: -1 | M5: -1 | N5: 1 | O5: 1
A6: -1 | B6: 1 | C6: 1 | D6: -1 | E6: -1 | F6: 1 | G6: 1 | H6: 1 | I6: 1 | J6: -1 | K6: -1 | L6: 1 | M6: 1 | N6: -1 | O6: -1
A7: -1 | B7: 1 | C7: 1 | D7: 1 | E7: 1 | F7: -1 | G7: -1 | H7: -1 | I7: -1 | J7: 1 | K7: 1 | L7: 1 | M7: 1 | N7: -1 | O7: -1
A8: -1 | B8: 1 | C8: 1 | D8: 1 | E8: 1 | F8: -1 | G8: -1 | H8: 1 | I8: 1 | J8: -1 | K8: -1 | L8: -1 | M8: -1 | N8: 1 | O8: 1
A9: 1 | B9: -1 | C9: 1 | D9: -1 | E9: 1 | F9: -1 | G9: 1 | H9: -1 | I9: 1 | J9: -1 | K9: 1 | L9: -1 | M9: 1 | N9: -1 | O9: 1
A10: 1 | B10: -1 | C10: 1 | D10: -1 | E10: 1 | F10: -1 | G10: 1 | H10: 1 | I10: -1 | J10: 1 | K10: -1 | L10: 1 | M10: -1 | N10: 1 | O10: -1
A11: 1 | B11: -1 | C11: 1 | D11: 1 | E11: -1 | F11: 1 | G11: -1 | H11: -1 | I11: 1 | J11: -1 | K11: 1 | L11: 1 | M11: -1 | N11: 1 | O11: -1
A12: 1 | B12: -1 | C12: 1 | D12: 1 | E12: -1 | F12: 1 | G12: -1 | H12: 1 | I12: -1 | J12: 1 | K12: -1 | L12: -1 | M12: 1 | N12: -1 | O12: 1
A13: 1 | B13: 1 | C13: -1 | D13: -1 | E13: 1 | F13: 1 | G13: -1 | H13: -1 | I13: 1 | J13: 1 | K13: -1 | L13: -1 | M13: 1 | N13: 1 | O13: -1
A14: 1 | B14: 1 | C14: -1 | D14: -1 | E14: 1 | F14: 1 | G14: -1 | H14: 1 | I14: -1 | J14: -1 | K14: 1 | L14: 1 | M14: -1 | N14: -1 | O14: 1
A15: 1 | B15: 1 | C15: -1 | D15: 1 | E15: -1 | F15: -1 | G15: 1 | H15: -1 | I15: 1 | J15: 1 | K15: -1 | L15: 1 | M15: -1 | N15: -1 | O15: 1
A16: 1 | B16: 1 | C16: -1 | D16: 1 | E16: -1 | F16: -1 | G16: 1 | H16: 1 | I16: -1 | J16: -1 | K16: 1 | L16: -1 | M16: 1 | N16: 1 | O16: -1

Sheet L32
A1: -1 | B1: -1 | C1: -1 | D1: -1 | E1: -1 | F1: -1 | G1: -1 | H1: -1 | I1: -1 | J1: -1 | K1: -1 | L1: -1 | M1: -1 | N1: -1 | O1: -1 | P1: -1 | Q1: -1 | R1: -1 | S1: -1 | T1: -1 | U1: -1 | V1: -1 | W1: -1 | X1: -1 | Y1: -1 | Z1: -1 | AA1: -1 | AB1: -1 | AC1: -1 | AD1: -1 | AE1: -1
A2: -1 | B2: -1 | C2: -1 | D2: -1 | E2: -1 | F2: -1 | G2: -1 | H2: -1 | I2: -1 | J2: -1 | K2: -1 | L2: -1 | M2: -1 | N2: -1 | O2: -1 | P2: 1 | Q2: 1 | R2: 1 | S2: 1 | T2: 1 | U2: 1 | V2: 1 | W2: 1 | X2: 1 | Y2: 1 | Z2: 1 | AA2: 1 | AB2: 1 | AC2: 1 | AD2: 1 | AE2: 1
A3: -1 | B3: -1 | C3: -1 | D3: -1 | E3: -1 | F3: -1 | G3: -1 | H3: 1 | I3: 1 | J3: 1 | K3: 1 | L3: 1 | M3: 1 | N3: 1 | O3: 1 | P3: -1 | Q3: -1 | R3: -1 | S3: -1 | T3: -1 | U3: -1 | V3: -1 | W3: -1 | X3: 1 | Y3: 1 | Z3: 1 | AA3: 1 | AB3: 1 | AC3: 1 | AD3: 1 | AE3: 1
A4: -1 | B4: -1 | C4: -1 | D4: -1 | E4: -1 | F4: -1 | G4: -1 | H4: 1 | I4: 1 | J4: 1 | K4: 1 | L4: 1 | M4: 1 | N4: 1 | O4: 1 | P4: 1 | Q4: 1 | R4: 1 | S4: 1 | T4: 1 | U4: 1 | V4: 1 | W4: 1 | X4: -1 | Y4: -1 | Z4: -1 | AA4: -1 | AB4: -1 | AC4: -1 | AD4: -1 | AE4: -1
A5: -1 | B5: -1 | C5: -1 | D5: 1 | E5: 1 | F5: 1 | G5: 1 | H5: -1 | I5: -1 | J5: -1 | K5: -1 | L5: 1 | M5: 1 | N5: 1 | O5: 1 | P5: -1 | Q5: -1 | R5: -1 | S5: -1 | T5: 1 | U5: 1 | V5: 1 | W5: 1 | X5: -1 | Y5: -1 | Z5: -1 | AA5: -1 | AB5: 1 | AC5: 1 | AD5: 1 | AE5: 1
A6: -1 | B6: -1 | C6: -1 | D6: 1 | E6: 1 | F6: 1 | G6: 1 | H6: -1 | I6: -1 | J6: -1 | K6: -1 | L6: 1 | M6: 1 | N6: 1 | O6: 1 | P6: 1 | Q6: 1 | R6: 1 | S6: 1 | T6: -1 | U6: -1 | V6: -1 | W6: -1 | X6: 1 | Y6: 1 | Z6: 1 | AA6: 1 | AB6: -1 | AC6: -1 | AD6: -1 | AE6: -1
A7: -1 | B7: -1 | C7: -1 | D7: 1 | E7: 1 | F7: 1 | G7: 1 | H7: 1 | I7: 1 | J7: 1 | K7: 1 | L7: -1 | M7: -1 | N7: -1 | O7: -1 | P7: -1 | Q7: -1 | R7: -1 | S7: -1 | T7: 1 | U7: 1 | V7: 1 | W7: 1 | X7: 1 | Y7: 1 | Z7: 1 | AA7: 1 | AB7: -1 | AC7: -1 | AD7: -1 | AE7: -1
A8: -1 | B8: -1 | C8: -1 | D8: 1 | E8: 1 | F8: 1 | G8: 1 | H8: 1 | I8: 1 | J8: 1 | K8: 1 | L8: -1 | M8: -1 | N8: -1 | O8: -1 | P8: 1 | Q8: 1 | R8: 1 | S8: 1 | T8: -1 | U8: -1 | V8: -1 | W8: -1 | X8: -1 | Y8: -1 | Z8: -1 | AA8: -1 | AB8: 1 | AC8: 1 | AD8: 1 | AE8: 1
A9: -1 | B9: 1 | C9: 1 | D9: -1 | E9: -1 | F9: 1 | G9: 1 | H9: -1 | I9: -1 | J9: 1 | K9: 1 | L9: -1 | M9: -1 | N9: 1 | O9: 1 | P9: -1 | Q9: -1 | R9: 1 | S9: 1 | T9: -1 | U9: -1 | V9: 1 | W9: 1 | X9: -1 | Y9: -1 | Z9: 1 | AA9: 1 | AB9: -1 | AC9: -1 | AD9: 1 | AE9: 1
A10: -1 | B10: 1 | C10: 1 | D10: -1 | E10: -1 | F10: 1 | G10: 1 | H10: -1 | I10: -1 | J10: 1 | K10: 1 | L10: -1 | M10: -1 | N10: 1 | O10: 1 | P10: 1 | Q10: 1 | R10: -1 | S10: -1 | T10: 1 | U10: 1 | V10: -1 | W10: -1 | X10: 1 | Y10: 1 | Z10: -1 | AA10: -1 | AB10: 1 | AC10: 1 | AD10: -1 | AE10: -1
A11: -1 | B11: 1 | C11: 1 | D11: -1 | E11: -1 | F11: 1 | G11: 1 | H11: 1 | I11: 1 | J11: -1 | K11: -1 | L11: 1 | M11: 1 | N11: -1 | O11: -1 | P11: -1 | Q11: -1 | R11: 1 | S11: 1 | T11: -1 | U11: -1 | V11: 1 | W11: 1 | X11: 1 | Y11: 1 | Z11: -1 | AA11: -1 | AB11: 1 | AC11: 1 | AD11: -1 | AE11: -1
A12: -1 | B12: 1 | C12: 1 | D12: -1 | E12: -1 | F12: 1 | G12: 1 | H12: 1 | I12: 1 | J12: -1 | K12: -1 | L12: 1 | M12: 1 | N12: -1 | O12: -1 | P12: 1 | Q12: 1 | R12: -1 | S12: -1 | T12: 1 | U12: 1 | V12: -1 | W12: -1 | X12: -1 | Y12: -1 | Z12: 1 | AA12: 1 | AB12: -1 | AC12: -1 | AD12: 1 | AE12: 1
A13: -1 | B13: 1 | C13: 1 | D13: 1 | E13: 1 | F13: -1 | G13: -1 | H13: -1 | I13: -1 | J13: 1 | K13: 1 | L13: 1 | M13: 1 | N13: -1 | O13: -1 | P13: -1 | Q13: -1 | R13: 1 | S13: 1 | T13: 1 | U13: 1 | V13: -1 | W13: -1 | X13: -1 | Y13: -1 | Z13: 1 | AA13: 1 | AB13: 1 | AC13: 1 | AD13: -1 | AE13: -1
A14: -1 | B14: 1 | C14: 1 | D14: 1 | E14: 1 | F14: -1 | G14: -1 | H14: -1 | I14: -1 | J14: 1 | K14: 1 | L14: 1 | M14: 1 | N14: -1 | O14: -1 | P14: 1 | Q14: 1 | R14: -1 | S14: -1 | T14: -1 | U14: -1 | V14: 1 | W14: 1 | X14: 1 | Y14: 1 | Z14: -1 | AA14: -1 | AB14: -1 | AC14: -1 | AD14: 1 | AE14: 1
A15: -1 | B15: 1 | C15: 1 | D15: 1 | E15: 1 | F15: -1 | G15: -1 | H15: 1 | I15: 1 | J15: -1 | K15: -1 | L15: -1 | M15: -1 | N15: 1 | O15: 1 | P15: -1 | Q15: -1 | R15: 1 | S15: 1 | T15: 1 | U15: 1 | V15: -1 | W15: -1 | X15: 1 | Y15: 1 | Z15: -1 | AA15: -1 | AB15: -1 | AC15: -1 | AD15: 1 | AE15: 1
A16: -1 | B16: 1 | C16: 1 | D16: 1 | E16: 1 | F16: -1 | G16: -1 | H16: 1 | I16: 1 | J16: -1 | K16: -1 | L16: -1 | M16: -1 | N16: 1 | O16: 1 | P16: 1 | Q16: 1 | R16: -1 | S16: -1 | T16: -1 | U16: -1 | V16: 1 | W16: 1 | X16: -1 | Y16: -1 | Z16: 1 | AA16: 1 | AB16: 1 | AC16: 1 | AD16: -1 | AE16: -1
A17: 1 | B17: -1 | C17: 1 | D17: -1 | E17: 1 | F17: -1 | G17: 1 | H17: -1 | I17: 1 | J17: -1 | K17: 1 | L17: -1 | M17: 1 | N17: -1 | O17: 1 | P17: -1 | Q17: 1 | R17: -1 | S17: 1 | T17: -1 | U17: 1 | V17: -1 | W17: 1 | X17: -1 | Y17: 1 | Z17: -1 | AA17: 1 | AB17: -1 | AC17: 1 | AD17: -1 | AE17: 1
A18: 1 | B18: -1 | C18: 1 | D18: -1 | E18: 1 | F18: -1 | G18: 1 | H18: -1 | I18: 1 | J18: -1 | K18: 1 | L18: -1 | M18: 1 | N18: -1 | O18: 1 | P18: 1 | Q18: -1 | R18: 1 | S18: -1 | T18: 1 | U18: -1 | V18: 1 | W18: -1 | X18: 1 | Y18: -1 | Z18: 1 | AA18: -1 | AB18: 1 | AC18: -1 | AD18: 1 | AE18: -1
A19: 1 | B19: -1 | C19: 1 | D19: -1 | E19: 1 | F19: -1 | G19: 1 | H19: 1 | I19: -1 | J19: 1 | K19: -1 | L19: 1 | M19: -1 | N19: 1 | O19: -1 | P19: -1 | Q19: 1 | R19: -1 | S19: 1 | T19: -1 | U19: 1 | V19: -1 | W19: 1 | X19: 1 | Y19: -1 | Z19: 1 | AA19: -1 | AB19: 1 | AC19: -1 | AD19: 1 | AE19: -1
A20: 1 | B20: -1 | C20: 1 | D20: -1 | E20: 1 | F20: -1 | G20: 1 | H20: 1 | I20: -1 | J20: 1 | K20: -1 | L20: 1 | M20: -1 | N20: 1 | O20: -1 | P20: 1 | Q20: -1 | R20: 1 | S20: -1 | T20: 1 | U20: -1 | V20: 1 | W20: -1 | X20: -1 | Y20: 1 | Z20: -1 | AA20: 1 | AB20: -1 | AC20: 1 | AD20: -1 | AE20: 1
A21: 1 | B21: -1 | C21: 1 | D21: 1 | E21: -1 | F21: 1 | G21: -1 | H21: -1 | I21: 1 | J21: -1 | K21: 1 | L21: 1 | M21: -1 | N21: 1 | O21: -1 | P21: -1 | Q21: 1 | R21: -1 | S21: 1 | T21: 1 | U21: -1 | V21: 1 | W21: -1 | X21: -1 | Y21: 1 | Z21: -1 | AA21: 1 | AB21: 1 | AC21: -1 | AD21: 1 | AE21: -1
A22: 1 | B22: -1 | C22: 1 | D22: 1 | E22: -1 | F22: 1 | G22: -1 | H22: -1 | I22: 1 | J22: -1 | K22: 1 | L22: 1 | M22: -1 | N22: 1 | O22: -1 | P22: 1 | Q22: -1 | R22: 1 | S22: -1 | T22: -1 | U22: 1 | V22: -1 | W22: 1 | X22: 1 | Y22: -1 | Z22: 1 | AA22: -1 | AB22: -1 | AC22: 1 | AD22: -1 | AE22: 1
A23: 1 | B23: -1 | C23: 1 | D23: 1 | E23: -1 | F23: 1 | G23: -1 | H23: 1 | I23: -1 | J23: 1 | K23: -1 | L23: -1 | M23: 1 | N23: -1 | O23: 1 | P23: -1 | Q23: 1 | R23: -1 | S23: 1 | T23: 1 | U23: -1 | V23: 1 | W23: -1 | X23: 1 | Y23: -1 | Z23: 1 | AA23: -1 | AB23: -1 | AC23: 1 | AD23: -1 | AE23: 1
A24: 1 | B24: -1 | C24: 1 | D24: 1 | E24: -1 | F24: 1 | G24: -1 | H24: 1 | I24: -1 | J24: 1 | K24: -1 | L24: -1 | M24: 1 | N24: -1 | O24: 1 | P24: 1 | Q24: -1 | R24: 1 | S24: -1 | T24: -1 | U24: 1 | V24: -1 | W24: 1 | X24: -1 | Y24: 1 | Z24: -1 | AA24: 1 | AB24: 1 | AC24: -1 | AD24: 1 | AE24: -1
A25: 1 | B25: 1 | C25: -1 | D25: -1 | E25: 1 | F25: 1 | G25: -1 | H25: -1 | I25: 1 | J25: 1 | K25: -1 | L25: -1 | M25: 1 | N25: 1 | O25: -1 | P25: -1 | Q25: 1 | R25: 1 | S25: -1 | T25: -1 | U25: 1 | V25: 1 | W25: -1 | X25: -1 | Y25: 1 | Z25: 1 | AA25: -1 | AB25: -1 | AC25: 1 | AD25: 1 | AE25: -1
A26: 1 | B26: 1 | C26: -1 | D26: -1 | E26: 1 | F26: 1 | G26: -1 | H26: -1 | I26: 1 | J26: 1 | K26: -1 | L26: -1 | M26: 1 | N26: 1 | O26: -1 | P26: 1 | Q26: -1 | R26: -1 | S26: 1 | T26: 1 | U26: -1 | V26: -1 | W26: 1 | X26: 1 | Y26: -1 | Z26: -1 | AA26: 1 | AB26: 1 | AC26: -1 | AD26: -1 | AE26: 1
A27: 1 | B27: 1 | C27: -1 | D27: -1 | E27: 1 | F27: 1 | G27: -1 | H27: 1 | I27: -1 | J27: -1 | K27: 1 | L27: 1 | M27: -1 | N27: -1 | O27: 1 | P27: -1 | Q27: 1 | R27: 1 | S27: -1 | T27: -1 | U27: 1 | V27: 1 | W27: -1 | X27: 1 | Y27: -1 | Z27: -1 | AA27: 1 | AB27: 1 | AC27: -1 | AD27: -1 | AE27: 1
A28: 1 | B28: 1 | C28: -1 | D28: -1 | E28: 1 | F28: 1 | G28: -1 | H28: 1 | I28: -1 | J28: -1 | K28: 1 | L28: 1 | M28: -1 | N28: -1 | O28: 1 | P28: 1 | Q28: -1 | R28: -1 | S28: 1 | T28: 1 | U28: -1 | V28: -1 | W28: 1 | X28: -1 | Y28: 1 | Z28: 1 | AA28: -1 | AB28: -1 | AC28: 1 | AD28: 1 | AE28: -1
A29: 1 | B29: 1 | C29: -1 | D29: 1 | E29: -1 | F29: -1 | G29: 1 | H29: -1 | I29: 1 | J29: 1 | K29: -1 | L29: 1 | M29: -1 | N29: -1 | O29: 1 | P29: -1 | Q29: 1 | R29: 1 | S29: -1 | T29: 1 | U29: -1 | V29: -1 | W29: 1 | X29: -1 | Y29: 1 | Z29: 1 | AA29: -1 | AB29: 1 | AC29: -1 | AD29: -1 | AE29: 1
A30: 1 | B30: 1 | C30: -1 | D30: 1 | E30: -1 | F30: -1 | G30: 1 | H30: -1 | I30: 1 | J30: 1 | K30: -1 | L30: 1 | M30: -1 | N30: -1 | O30: 1 | P30: 1 | Q30: -1 | R30: -1 | S30: 1 | T30: -1 | U30: 1 | V30: 1 | W30: -1 | X30: 1 | Y30: -1 | Z30: -1 | AA30: 1 | AB30: -1 | AC30: 1 | AD30: 1 | AE30: -1
A31: 1 | B31: 1 | C31: -1 | D31: 1 | E31: -1 | F31: -1 | G31: 1 | H31: 1 | I31: -1 | J31: -1 | K31: 1 | L31: -1 | M31: 1 | N31: 1 | O31: -1 | P31: -1 | Q31: 1 | R31: 1 | S31: -1 | T31: 1 | U31: -1 | V31: -1 | W31: 1 | X31: 1 | Y31: -1 | Z31: -1 | AA31: 1 | AB31: -1 | AC31: 1 | AD31: 1 | AE31: -1
A32: 1 | B32: 1 | C32: -1 | D32: 1 | E32: -1 | F32: -1 | G32: 1 | H32: 1 | I32: -1 | J32: -1 | K32: 1 | L32: -1 | M32: 1 | N32: 1 | O32: -1 | P32: 1 | Q32: -1 | R32: -1 | S32: 1 | T32: -1 | U32: 1 | V32: 1 | W32: -1 | X32: -1 | Y32: 1 | Z32: 1 | AA32: -1 | AB32: 1 | AC32: -1 | AD32: -1 | AE32: 1

Sheet L9
A1: -1 | B1: -1 | C1: -1 | D1: -1
A2: -1 | B2: 0 | C2: 0 | D2: 0
A3: -1 | B3: 1 | C3: 1 | D3: 1
A4: 0 | B4: -1 | C4: 0 | D4: 1
A5: 0 | B5: 0 | C5: 1 | D5: -1
A6: 0 | B6: 1 | C6: -1 | D6: 0
A7: 1 | B7: -1 | C7: 1 | D7: 0
A8: 1 | B8: 0 | C8: -1 | D8: 1
A9: 1 | B9: 1 | C9: 0 | D9: -1

Sheet L27
A1: -1 | B1: -1 | C1: -1 | D1: -1 | E1: -1 | F1: -1 | G1: -1 | H1: -1 | I1: -1 | J1: -1 | K1: -1 | L1: -1 | M1: -1
A2: -1 | B2: -1 | C2: -1 | D2: -1 | E2: 0 | F2: 0 | G2: 0 | H2: 0 | I2: 0 | J2: 0 | K2: 0 | L2: 0 | M2: 0
A3: -1 | B3: -1 | C3: -1 | D3: -1 | E3: 1 | F3: 1 | G3: 1 | H3: 1 | I3: 1 | J3: 1 | K3: 1 | L3: 1 | M3: 1
A4: -1 | B4: 0 | C4: 0 | D4: 0 | E4: -1 | F4: -1 | G4: -1 | H4: 0 | I4: 0 | J4: 0 | K4: 1 | L4: 1 | M4: 1
A5: -1 | B5: 0 | C5: 0 | D5: 0 | E5: 0 | F5: 0 | G5: 0 | H5: 1 | I5: 1 | J5: 1 | K5: -1 | L5: -1 | M5: -1
A6: -1 | B6: 0 | C6: 0 | D6: 0 | E6: 1 | F6: 1 | G6: 1 | H6: -1 | I6: -1 | J6: -1 | K6: 0 | L6: 0 | M6: 0
A7: -1 | B7: 1 | C7: 1 | D7: 1 | E7: -1 | F7: -1 | G7: -1 | H7: 1 | I7: 1 | J7: 1 | K7: 0 | L7: 0 | M7: 0
A8: -1 | B8: 1 | C8: 1 | D8: 1 | E8: 0 | F8: 0 | G8: 0 | H8: -1 | I8: -1 | J8: -1 | K8: 1 | L8: 1 | M8: 1
A9: -1 | B9: 1 | C9: 1 | D9: 1 | E9: 1 | F9: 1 | G9: 1 | H9: 0 | I9: 0 | J9: 0 | K9: -1 | L9: -1 | M9: -1
A10: 0 | B10: -1 | C10: 0 | D10: 1 | E10: -1 | F10: 0 | G10: 1 | H10: -1 | I10: 0 | J10: 1 | K10: -1 | L10: 0 | M10: 1
A11: 0 | B11: -1 | C11: 0 | D11: 1 | E11: 0 | F11: 1 | G11: -1 | H11: 0 | I11: 1 | J11: -1 | K11: 0 | L11: 1 | M11: -1
A12: 0 | B12: -1 | C12: 0 | D12: 1 | E12: 1 | F12: -1 | G12: 0 | H12: 1 | I12: -1 | J12: 0 | K12: 1 | L12: -1 | M12: 0
A13: 0 | B13: 0 | C13: 1 | D13: -1 | E13: -1 | F13: 0 | G13: 1 | H13: 0 | I13: 1 | J13: -1 | K13: 1 | L13: -1 | M13: 0
A14: 0 | B14: 0 | C14: 1 | D14: -1 | E14: 0 | F14: 1 | G14: -1 | H14: 1 | I14: -1 | J14: 0 | K14: -1 | L14: 0 | M14: 1
A15: 0 | B15: 0 | C15: 1 | D15: -1 | E15: 1 | F15: -1 | G15: 0 | H15: -1 | I15: 0 | J15: 1 | K15: 0 | L15: 1 | M15: -1
A16: 0 | B16: 1 | C16: -1 | D16: 0 | E16: -1 | F16: 0 | G16: 1 | H16: 1 | I16: -1 | J16: 0 | K16: 0 | L16: 1 | M16: -1
A17: 0 | B17: 1 | C17: -1 | D17: 0 | E17: 0 | F17: 1 | G17: -1 | H17: -1 | I17: 0 | J17: 1 | K17: 1 | L17: -1 | M17: 0
A18: 0 | B18: 1 | C18: -1 | D18: 0 | E18: 1 | F18: -1 | G18: 0 | H18: 0 | I18: 1 | J18: -1 | K18: -1 | L18: 0 | M18: 1
A19: 1 | B19: -1 | C19: 1 | D19: 0 | E19: -1 | F19: 1 | G19: 0 | H19: -1 | I19: 1 | J19: 0 | K19: -1 | L19: 1 | M19: 0
A20: 1 | B20: -1 | C20: 1 | D20: 0 | E20: 0 | F20: -1 | G20: 1 | H20: 0 | I20: -1 | J20: 1 | K20: 0 | L20: -1 | M20: 1
A21: 1 | B21: -1 | C21: 1 | D21: 0 | E21: 1 | F21: 0 | G21: -1 | H21: 1 | I21: 0 | J21: -1 | K21: 1 | L21: 0 | M21: -1
A22: 1 | B22: 0 | C22: -1 | D22: 1 | E22: -1 | F22: 1 | G22: 0 | H22: 0 | I22: -1 | J22: 1 | K22: 1 | L22: 0 | M22: -1
A23: 1 | B23: 0 | C23: -1 | D23: 1 | E23: 0 | F23: -1 | G23: 1 | H23: 1 | I23: 0 | J23: -1 | K23: -1 | L23: 1 | M23: 0
A24: 1 | B24: 0 | C24: -1 | D24: 1 | E24: 1 | F24: 0 | G24: -1 | H24: -1 | I24: 1 | J24: 0 | K24: 0 | L24: -1 | M24: 1
A25: 1 | B25: 1 | C25: 0 | D25: -1 | E25: -1 | F25: 1 | G25: 0 | H25: 1 | I25: 0 | J25: -1 | K25: 0 | L25: -1 | M25: 1
A26: 1 | B26: 1 | C26: 0 | D26: -1 | E26: 0 | F26: -1 | G26: 1 | H26: -1 | I26: 1 | J26: 0 | K26: 1 | L26: 0 | M26: -1
A27: 1 | B27: 1 | C27: 0 | D27: -1 | E27: 1 | F27: 0 | G27: -1 | H27: 0 | I27: -1 | J27: 1 | K27: -1 | L27: 1 | M27: 0

Sheet Descriptive
A1: Descriptive Statistics
A4: Mean
A5: Standard deviation
A6: Count
A7: Min
A8: Q1
A9: Median
A10: Q3
A11: Max
A12: 95% C.I. Mean
A13: 95% C.I. Standard Dev.

Sheet T-test
A1: T-test
A3: Hypothesis Test
A4: HNull
A5: HAlternative
A7: Conclusion:
A9: Sample Data
A10: Sample 1
A11: Mean
A12: Standard deviation
A13: N
A15: T-test Information
A16: T-calculated
A17: T-critical
A18: p-value

Sheet Proportion
A1: Proportion
A3: Hypothesis Test
A4: HNull
A5: HAlternative
A7: Conclusion:
A9: Sample Data
A11: Proportion
A12: 95% C.I.
A13: N
A15: Test Information
A16: p-value

Sheet Chi2-test
A1: Chi2-test
A3: Hypothesis Test
A4: HNull | B4: No significant difference in proportions exist between the groups
A5: HAlternative | B5: A significant difference in proportions exist between the groups
A7: Conclusion:
A9: Table

Sheet ANOVA
A1: ANOVA
A3: Hypothesis Test
A4: HNull | B4: The mean-values of all groups are equal.
A5: HAlternative | B5: The mean-values of all groups are not equal.
A7: Conclusion:
A9: Analysis of Variance
A10: Source | B10: df | C10: SS | D10: MS | E10: F | F10: p-value
A11: Group
A12: Error
A13: Total

Sheet Correlation
A1: Correlation Matrix

Sheet Regression
A1: Regression Analysis
A3: Regression Statistics
A4: R2
A5: R2-adjusted
A6: S
A7: Observations
A9: ANOVA
A10: Source | B10: df | C10: SS | D10: MS | E10: F | F10: p-value
A11: Regression
A12: Residual Error
A13: Total
A15: Regression Equation:
A19: Dependent Vars | B19: Coefficient | C19: Standard Error | D19: T | E19: p-value
A20: Constant | B20: Not fitted

Sheet DOE
A1: Design of Experiments
A4: Factors #
A5: Runs #
A6: Center points #
A7: Replicates #
A8: Design
A10: Experimental Design
A11: Run Ord. | B11: Std. Ord.

Sheet Statapult Calculator
A1: The Statapult Calculator
A3: The Statapult is a commonly used training tool and can be used to teach basic statistics, statistical process control (SPC), design of experiments (DOE) and variance reduction techniques. This calculator has been designed to assist
A4: in analyzing a 3 factors, full-factorial design, i.e. 8 runs. The three factors in the experiment are the starting Angle, the Cup position and the Hook position. The calculator does not perform any ANOVA calculation, t-tests etc to
A5: determine the statistical significance of the factors or interactions. It merely assists in calculating the model for the Mean Distance and the Standard Deviation of the Distance (provided that the runs are replicated). It also features a
A6: Process Simulator to assist in predicting the distance of different input settings and can be used for verification of the model.
A19: EXPERIMENTAL MATRIX:
I20: Distance
A21: Run | B21: Angle | C21: Cup | D21: Hook | E21: A*C | F21: A*H | G21: C*H | H21: A*C*H | I21: Mean | J21: STDEV | L21: Measurements
A22: 1 | B22: -1 | C22: -1 | D22: -1 | E22: =B22*C22 -> 1 | F22: =B22*D22 -> 1 | G22: =C22*D22 -> 1 | H22: =B22*C22*D22 -> -1 | I22: =IF(COUNT(L22:T22)>0,AVERAGE(L22:T22),"") -> 105 | J22: =IF(COUNT(L22:T22)>1,STDEV(L22:T22),"") -> 5.567764363 | L22: 106 | M22: 99 | N22: 110
A23: 2 | B23: 1 | C23: -1 | D23: -1 | E23: =B23*C23 -> -1 | F23: =B23*D23 -> -1 | G23: =C23*D23 -> 1 | H23: =B23*C23*D23 -> 1 | I23: 206 | J23: 5.567764363 | L23: 205 | M23: 212 | N23: 201
A24: 3 | B24: -1 | C24: 1 | D24: -1 | E24: -1 | F24: 1 | G24: -1 | H24: 1 | I24: 154 | J24: 2.645751311 | L24: 152 | M24: 157 | N24: 153
A25: 4 | B25: 1 | C25: 1 | D25: -1 | E25: 1 | F25: -1 | G25: -1 | H25: -1 | I25: 288.6666667 | J25: 5.507570547 | L25: 285 | M25: 286 | N25: 295
A26: 5 | B26: -1 | C26: -1 | D26: 1 | E26: 1 | F26: -1 | G26: -1 | H26: 1 | I26: 135 | J26: 4.358898944 | L26: 140 | M26: 133 | N26: 132
A27: 6 | B27: 1 | C27: -1 | D27: 1 | E27: -1 | F27: 1 | G27: -1 | H27: -1 | I27: 302.3333333 | J27: 5.131601439 | L27: 301 | M27: 298 | N27: 308
A28: 7 | B28: -1 | C28: 1 | D28: 1 | E28: -1 | F28: -1 | G28: 1 | H28: -1 | I28: 193.3333333 | J28: 3.511884584 | L28: 190 | M28: 197 | N28: 193
A29: 8 | B29: 1 | C29: 1 | D29: 1 | E29: 1 | F29: 1 | G29: 1 | H29: 1 | I29: 450 | J29: 9.16515139 | L29: 440 | M29: 452 | N29: 458
A32: ANALYSIS OF EXPERIMENT: MEAN DISTANCE | L32: ANALYSIS OF EXPERIMENT: STANDARD DEVIATION OF DISTANCE
A34: Run | B34: Angle | C34: Cup | D34: Hook | E34: A*C | F34: A*H | G34: C*H | H34: A*C*H | I34: Mean | L34: Run | M34: Angle | N34: Cup | O34: Hook | P34: A*C | Q34: A*H | R34: C*H | S34: A*C*H | T34: STDEV
A35: 1 | B35: =IF($I22<>"",B22*$I22,"") -> -105 | C35: =IF($I22<>"",C22*$I22,"") -> -105 | D35: -105 | E35: 105 | F35: 105 | G35: 105 | H35: -105 | I35: =I22 -> 105 | L35: 1 | M35: =IF($J22<>"",B22*$J22,"") -> -5.567764363 | N35: =IF($J22<>"",C22*$J22,"") -> -5.567764363 | O35: -5.567764363 | P35: 5.567764363 | Q35: 5.567764363 | R35: 5.567764363 | S35: -5.567764363 | T35: =J22 -> 5.567764363
A36: 2 | B36: 206 | C36: =IF($I23<>"",C23*$I23,"") -> -206 | D36: -206 | E36: -206 | F36: -206 | G36: 206 | H36: 206 | I36: =I23 -> 206 | L36: 2 | M36: =IF($J23<>"",B23*$J23,"") -> 5.567764363 | N36: =IF($J23<>"",C23*$J23,"") -> -5.567764363 | O36: =IF($J23<>"",D23*$J23,"") -> -5.567764363 | P36: =IF($J23<>"",E23*$J23,"") -> -5.567764363 | Q36: =IF($J23<>"",F23*$J23,"") -> -5.567764363 | R36: =IF($J23<>"",G23*$J23,"") -> 5.567764363 | S36: =IF($J23<>"",H23*$J23,"") -> 5.567764363 | T36: =J23 -> 5.567764363
A37: 3 | B37: -154 | C37: 154 | D37: -154 | E37: -154 | F37: 154 | G37: -154 | H37: 154 | I37: 154 | L37: 3 | M37: -2.645751311 | N37: 2.645751311 | O37: -2.645751311 | P37: -2.645751311 | Q37: 2.645751311 | R37: -2.645751311 | S37: 2.645751311 | T37: 2.645751311
A38: 4 | B38: 288.6666667 | C38: 288.6666667 | D38: -288.6666667 | E38: 288.6666667 | F38: -288.6666667 | G38: -288.6666667 | H38: -288.6666667 | I38: 288.6666667 | L38: 4 | M38: 5.507570547 | N38: 5.507570547 | O38: -5.507570547 | P38: 5.507570547 | Q38: -5.507570547 | R38: -5.507570547 | S38: -5.507570547 | T38: 5.507570547
A39: 5 | B39: -135 | C39: -135 | D39: 135 | E39: 135 | F39: -135 | G39: -135 | H39: 135 | I39: 135 | L39: 5 | M39: -4.358898944 | N39: -4.358898944 | O39: 4.358898944 | P39: 4.358898944 | Q39: -4.358898944 | R39: -4.358898944 | S39: 4.358898944 | T39: 4.358898944
A40: 6 | B40: 302.3333333 | C40: -302.3333333 | D40: 302.3333333 | E40: -302.3333333 | F40: 302.3333333 | G40: -302.3333333 | H40: -302.3333333 | I40: 302.3333333 | L40: 6 | M40: 5.131601439 | N40: -5.131601439 | O40: 5.131601439 | P40: -5.131601439 | Q40: 5.131601439 | R40: -5.131601439 | S40: -5.131601439 | T40: 5.131601439
A41: 7 | B41: =IF($I28<>"",B28*$I28,"") -> -193.3333333 | C41: 193.3333333 | D41: 193.3333333 | E41: -193.3333333 | F41: -193.3333333 | G41: 193.3333333 | H41: -193.3333333 | I41: 193.3333333 | L41: 7 | M41: -3.511884584 | N41: 3.511884584 | O41: 3.511884584 | P41: -3.511884584 | Q41: -3.511884584 | R41: 3.511884584 | S41: -3.511884584 | T41: 3.511884584
A42: 8 | B42: =IF($I29<>"",B29*$I29,"") -> 450 | C42: 450 | D42: 450 | E42: 450 | F42: 450 | G42: 450 | H42: 450 | I42: 450 | L42: 8 | M42: 9.16515139 | N42: 9.16515139 | O42: 9.16515139 | P42: 9.16515139 | Q42: 9.16515139 | R42: 9.16515139 | S42: 9.16515139 | T42: 9.16515139
A43: Contrast | B43: =SUM(B35:B42) -> 659.6666667 | C43: =SUM(C35:C42) -> 337.6666667 | D43: 327 | E43: 123 | F43: 188.3333333 | G43: 74.33333333 | H43: 55.66666667 | L43: Contrast | M43: =SUM(M35:M42) -> 9.287788538 | N43: 0.2043287239 | O43: 2.878685773 | P43: 7.742383546 | Q43: 3.564150065 | R43: 6.168742459 | S43: 2.018745073
A44: Effect | B44: =B43/4 -> 164.9166667 | C44: =C43/4 -> 84.41666667 | D44: 81.75 | E44: 30.75 | F44: 47.08333333 | G44: 18.58333333 | H44: 13.91666667 | L44: Effect | M44: =M43/4 -> 2.321947134 | N44: 0.05108218097 | O44: 0.7196714433 | P44: 1.935595886 | Q44: 0.8910375163 | R44: 1.542185615 | S44: 0.5046862684
A45: Coefficient | B45: =B44/2 -> 82.45833333 | C45: =C44/2 -> 42.20833333 | D45: 40.875 | E45: 15.375 | F45: 23.54166667 | G45: 9.291666667 | H45: 6.958333333 | I45: =IF(COUNT(I35:I42)>0,AVERAGE(I35:I42),0) -> 229.2916667 | L45: Coefficient | M45: =M44/2 -> 1.160973567 | N45: 0.02554109049 | O45: 0.3598357216 | P45: 0.9677979432 | Q45: 0.4455187582 | R45: 0.7710928073 | S45: 0.2523431342 | T45: =IF(COUNT(T35:T42)>0,AVERAGE(T35:T42),0) -> 5.182048368
A48: PROCESS DESCRIPTION: MEAN DISTANCE | L48: PROCESS DESCRIPTION: STANDARD DEVIATION OF DISTANCE
A50: Mean = | B50: =TEXT(I45,IF(MID(FIXED(0.5,1,FALSE),2,1)=".","0.0","0,0"))&IF(B45>=0,"+","")&TEXT(B45,IF(MID(FIXED(0.5,1,FALSE),2,1)=".","0.0","0,0"))&"*Angle"&IF(C45>=0,"+","")&TEXT(C45,IF(MID(FIXED(0.5,1,FALSE),2,1)=".","0.0","0,0"))&"*Cup"&IF(D45>=0,"+","")&TEXT(D45,IF(MID(FIXED(0.5,1,FALSE),2,1)=".","0.0","0,0"))&"*Hook"&IF(E45>=0,"+","")&TEXT(E45,IF(MID(FIXED(0.5,1,FALSE),2,1)=".","0.0","0,0"))&"*Angle*Cup"&IF(F45>=0,"+","")&TEXT(F45,IF(MID(FIXED(0.5,1,FALSE),2,1)=".","0.0","0,0"))&"*Angle*Hook" -> 229.3+82.5*Angle+42.2*Cup+40.9*Hook+15.4*Angle*Cup+23.5*Angle*Hook | L50: STDEV = | M50: =TEXT(T45,IF(MID(FIXED(0.5,1,FALSE),2,1)=".","0.0","0,0"))&IF(M45>=0,"+","")&TEXT(M45,IF(MID(FIXED(0.5,1,FALSE),2,1)=".","0.0","0,0"))&"*Angle"&IF(N45>=0,"+","")&TEXT(N45,IF(MID(FIXED(0.5,1,FALSE),2,1)=".","0.0","0,0"))&"*Cup"&IF(O45>=0,"+","")&TEXT(O45,IF(MID(FIXED(0.5,1,FALSE),2,1)=".","0.0","0,0"))&"*Hook"&IF(P45>=0,"+","")&TEXT(P45,IF(MID(FIXED(0.5,1,FALSE),2,1)=".","0.0","0,0"))&"*Angle*Cup"&IF(Q45>=0,"+","")&TEXT(Q45,IF(MID(FIXED(0.5,1,FALSE),2,1)=".","0.0","0,0"))&"*Angle*Hook" -> 5.2+1.2*Angle+0.0*Cup+0.4*Hook+1.0*Angle*Cup+0.4*Angle*Hook
B51: =IF(G45>=0,"+","")&TEXT(G45,IF(MID(FIXED(0.5,1,FALSE),2,1)=".","0.0","0,0"))&"*Cup*Hook"&IF(H45>=0,"+","")&TEXT(H45,IF(MID(FIXED(0.5,1,FALSE),2,1)=".","0.0","0,0"))&"*Angle*Cup*Hook" -> +9.3*Cup*Hook+7.0*Angle*Cup*Hook | M51: =IF(R45>=0,"+","")&TEXT(R45,IF(MID(FIXED(0.5,1,FALSE),2,1)=".","0.0","0,0"))&"*Cup*Hook"&IF(S45>=0,"+","")&TEXT(S45,IF(MID(FIXED(0.5,1,FALSE),2,1)=".","0.0","0,0"))&"*Angle*Cup*Hook" -> +0.8*Cup*Hook+0.3*Angle*Cup*Hook
A54: PROCESS SIMULATOR:
A56: Factor | D56: Setting
A57: Angle | D57: 171.3861386
A58: Cup | D58: 1
A59: Hook | D59: -1
A60: Expected Distance | D60: =I45+B45*(D57-165)/15+C45*D58+D45*D59+E45*D58*(D57-165)/15+F45*D59*(D57-165)/15+G45*D58*D59+H45*D58*D59*(D57-165)/15 -> 250
A61: Expected Standard Deviation | D61: =T45+M45*(D57-165)/15+N45*D58+O45*D59+P45*D58*(D57-165)/15+Q45*D59*(D57-165)/15+R45*D58*D59+S45*D58*D59*(D57-165)/15 -> 4.685860074
A62: Copyright © Johansson Consulting, 2004. All rights reserved. | P62: Visit our Web-Site: http://www.johansson-consulting.com/

Sheet TUW-I
A1: The Transmitter Unit Workbench
A3: Run a DOE to characterize the function of the transmitter unit. Which are the "vital few" factors and how do they relate to the location and
A4: spread of the output signal? How does the noise variable, operating temperature, affect the stability of the design? Can you make it robust?
A20: Factors | B20: Value | M20: Output
A21: R1 | B21: =4.2+E21/100 -> 4.7 | C21: kΩ | E21: 50 | M21: Test # 1 | O21: MHz
A22: R2 | B22: =305+E22/2 -> 330 | C22: Ω | E22: 50 | M22: Test # 2 | O22: MHz
A23: C1 | B23: =0.75+E23/100 -> 1 | C23: nF | E23: 25 | F23: 2N3904 | M23: Test # 3 | O23: MHz
A24: C2 | B24: =10*(2.25+E24/100) -> 25 | C24: pF | E24: 25 | F24: 4Q3162 | M24: Test # 4 | O24: MHz
A25: C3 | B25: =4.2+E25/100 -> 4.7 | C25: pF | E25: 50 | F25: 2N4106 | M25: Test # 5 | O25: MHz
A26: C4 | B26: =0.75+E26/100 -> 1 | C26: nF | E26: 25 | M26: Test # 6 | O26: MHz
A27: L1 | B27: =0.08+E27/100 -> 0.1 | C27: μH | E27: 2 | M27: Test # 7 | O27: MHz
A28: Q1 | B28: =E28 -> 2N3904 | E28: 2N3904 | M28: Mean | N28: =IF(COUNT(N21:N27)=7,AVERAGE(N21:N27),"N/A") -> N/A | O28: MHz
A29: Temperature | B29: =E29/2-10 -> 20 | C29: °C | E29: 60 | F29: =10*(24.9715000015529-0.2338050000047*B24-82.38*B27-0.0216908666126822*B22+113.389178473883*B27*B27+0.0000336095357384017*B22*B22+0.496500000042745*B24*B27) -> 97.65609246 | M29: STDEV | N29: =IF(COUNT(N21:N27)=7,STDEV(N21:N27),"N/A") -> N/A | O29: MHz
A30: Copyright © Johansson Consulting, 2004. All rights reserved.

Sheet SPC-demo
A1: Statistical Process Control Demo
A3: Run the production and try to keep the dimension between the specification limits [10.00 ± 0.40]. Use the arrow buttons to adjust the mean process value up and down
A4: [step: ± 0.05].The capability of the process is 4σ (the short-term standard deviation is 0.10), i.e., if you can control the process, the expected defect rate is 6207 dpmo.
G9: 10
G10: 0.1
O13: Increase
O14: +0.05
O20: Decrease
O21: -0.05
A29: Total production # | C29: 0
A30: Defects # | C30: 0
A31: Defects % | C31: =IF(C29<>0,C30/C29,0) -> 0
A32: Copyright © Johansson Consulting, 2004. All rights reserved.
A99: Table - Do not touch!
A100: # | B100: LSL | C100: LCL | D100: Value | E100: UCL | F100: USL
A101: 1 | B101: 9.6 | C101: 0 | D101: 10 | E101: 0 | F101: 10.4
A102: 2 | B102: =B101 -> 9.6 | C102: =C101 -> 0 | D102: 10 | E102: =E101 -> 0 | F102: =F101 -> 10.4
A103: 3 | B103: 9.6 | C103: 0 | D103: 10 | E103: 0 | F103: 10.4
A104: 4 | B104: 9.6 | C104: 0 | D104: 10 | E104: 0 | F104: 10.4
A105: 5 | B105: 9.6 | C105: 0 | D105: 10 | E105: 0 | F105: 10.4
A106: 6 | B106: 9.6 | C106: 0 | D106: 10 | E106: 0 | F106: 10.4
A107: 7 | B107: 9.6 | C107: 0 | D107: 10 | E107: 0 | F107: 10.4
A108: 8 | B108: 9.6 | C108: 0 | D108: 10 | E108: 0 | F108: 10.4
A109: 9 | B109: 9.6 | C109: 0 | D109: 10 | E109: 0 | F109: 10.4
A110: 10 | B110: 9.6 | C110: 0 | D110: 10 | E110: 0 | F110: 10.4
A111: 11 | B111: 9.6 | C111: 0 | D111: 10 | E111: 0 | F111: 10.4
A112: 12 | B112: 9.6 | C112: 0 | D112: 10 | E112: 0 | F112: 10.4
A113: 13 | B113: 9.6 | C113: 0 | D113: 10 | E113: 0 | F113: 10.4
A114: 14 | B114: 9.6 | C114: 0 | D114: 10 | E114: 0 | F114: 10.4
A115: 15 | B115: 9.6 | C115: 0 | D115: 10 | E115: 0 | F115: 10.4
A116: 16 | B116: 9.6 | C116: 0 | D116: 10 | E116: 0 | F116: 10.4
A117: 17 | B117: 9.6 | C117: 0 | D117: 10 | E117: 0 | F117: 10.4
A118: 18 | B118: 9.6 | C118: 0 | D118: 10 | E118: 0 | F118: 10.4
A119: 19 | B119: 9.6 | C119: 0 | D119: 10 | E119: 0 | F119: 10.4
A120: 20 | B120: 9.6 | C120: 0 | D120: 10 | E120: 0 | F120: 10.4
A121: 21 | B121: 9.6 | C121: 0 | D121: 10 | E121: 0 | F121: 10.4
A122: 22 | B122: 9.6 | C122: 0 | D122: 10 | E122: 0 | F122: 10.4
A123: 23 | B123: 9.6 | C123: 0 | D123: 10 | E123: 0 | F123: 10.4
A124: 24 | B124: 9.6 | C124: 0 | D124: 10 | E124: 0 | F124: 10.4
A125: 25 | B125: 9.6 | C125: 0 | D125: 10 | E125: 0 | F125: 10.4

Sheet DMAIC-Process
A1: DMAIC-Process Overview
A3: DMAIC Improvement Project:
A4: Date:
A5: Prepared by:
A6: Process/Product/Service:
A8: Define Phase | B8: Responsible Person | C8: Planned Date | D8: Completion Date
A9: Define the customers and their requirements in terms of CTQs.
A10: Develop a high level XY-matrix to link the CTQs to Xs.
A11: Develop a high level process map or SIPOC (suppliers, inputs, process, outputs and customers) for the target process to improve.
A12: Brainstorming Session: What are the problems of the process?
A13: Brainstorming Session: What are the goals and benefits of the project?
A14: Define the measures that you'll use to determine the effectiveness of the project.
A15: Complete the project charter including business case, problem and goal statements, project scope, milestones, roles and responsibilities, and communication plan.
A17: Measure Phase | B17: Responsible Person | C17: Planned Date | D17: Completion Date
A18: Define defects, opportunities, units and the metrics to be used.
A19: Develop a detailed process map to identify areas where data collection should take place, and design a data collection plan.
A20: Validate the measurement system.
A21: Collect data and determine current process capability and sigma baseline level.
A23: Analyze Phase | B23: Responsible Person | C23: Planned Date | D23: Completion Date
A24: Define process performance objectives.
A25: Identify value and non-value added process steps in the process.
A26: Brainstorming Session: What are the sources of variation?
A27: Brainstorming Session: Identify relationships and root causes.
A28: Determine key input variables and the Y = f(X) relationship between the input and the output variables
A30: Improve Phase | B30: Responsible Person | C30: Planned Date | D30: Completion Date
A31: Brainstorming Session: What are the potential solutions?
A32: Develop process maps of the potential process(es).
A33: Perform DOE(s) to evaluate potential solutions. Use the DOE planning sheet-template.
A34: Complete a FMEA to assess failure modes of potential solutions
A35: Perform a pilot study and collect data from the potential process and analyze them to validate improvement.
A36: Develop a implementation plan, including schedule, action plan, resources, risk management plan, cost/budget, communication and control plan.
A38: Control Phase | B38: Responsible Person | C38: Planned Date | D38: Completion Date
A39: Collect data and make control charts for key variables. Calculate process capability on-going.
A40: Develop transfer plan and handoff to process owner.
A41: Calculate cost and savings, and other achieved benefits.
A42: Close project and finalize documents.
D43: Copyright © Johansson Consulting, 2004. All rights reserved

Sheet Project Charter
A1: Project Charter
A3: DMAIC Improvement Project:
A4: Date:
A5: Prepared by:
A6: Process/Product/Service:
A8: Steering Group | F8: Team Members
A9: Sponsor: | F9: Team Leader:
A10: Master Black Belt: | F10: Black Belt:
A11: Subject Matter Experts: | F11: Team Members:
A17: Background and purpose of project
A20: What is the goal of the project and the expected results? | F20: How will the project results be measured?
A23: What is the specific value added to the customers? | F23: What is the specific value added to the company?
A26: Key milestones | C26: Planned Date | D26: Completed Date | F26: Business Case
F27: What is the expected cost and savings? What is the ROI?
A37: Copyright © Johansson Consulting, 2004. All rights reserved

Sheet XY-Matrix
A1: XY Matrix
A3: Instructions
A4: The XY-matrix helps identifying areas of focus in the define-phase by linking CTQs (Ys) to causes (Xs). It can also be used by a project team to identify the initial factors for a designed experiment.
A6: Steps for Using the XY Matrix
A7: 1) In the Output Variables (Y's) row, enter the important CTQs.
A8: 2) Rate each Y from 1 to 10. Assign the highest number to the most important.
A9: 3) Identify all of the potential causes (X's) that can impact the various outputs and list these in the Input Variables (X's) column. (Use the X's identified on the process map.)
A10: 4) Determine the impact of each X on each Y. In the Association Table, rate the effect each X has on each Y. Use a scale from 1-10, with the most important receiving the highest number.
A11: 5) The overall ratings of the Xs will be calculated automatically.
A13: DMAIC Improvement Project:
A14: Date:
A15: Prepared by:
A16: Process/Product/Service:
B18: 1 | C18: 2 | D18: 3 | E18: 4 | F18: 5 | G18: 6 | H18: 7 | I18: 8 | J18: 9 | K18: 10
A19: Output Variables (Y's)
A20: Output Rating 1 to 10
A21: Input Variables (X's) | L21: Rating | M21: %
L22: =B$20*B22+C$20*C22+D$20*D22+E$20*E22+F$20*F22+G$20*G22+H$20*H22+I$20*I22+J$20*J22+K$20*K22 -> 0 | M22: =IF(L$42<>0,L22/L$42,0) -> 0
L23: =B$20*B23+C$20*C23+D$20*D23+E$20*E23+F$20*F23+G$20*G23+H$20*H23+I$20*I23+J$20*J23+K$20*K23 -> 0 | M23: =IF(L$42<>0,L23/L$42,0) -> 0
L24: =B$20*B24+C$20*C24+D$20*D24+E$20*E24+F$20*F24+G$20*G24+H$20*H24+I$20*I24+J$20*J24+K$20*K24 -> 0 | M24: 0
L25: =B$20*B25+C$20*C25+D$20*D25+E$20*E25+F$20*F25+G$20*G25+H$20*H25+I$20*I25+J$20*J25+K$20*K25 -> 0 | M25: 0
L26: 0 | M26: 0
L27: 0 | M27: 0
L28: 0 | M28: 0
L29: 0 | M29: 0
L30: 0 | M30: 0
L31: 0 | M31: 0
L32: =B$20*B32+C$20*C32+D$20*D32+E$20*E32+F$20*F32+G$20*G32+H$20*H32+I$20*I32+J$20*J32+K$20*K32 -> 0 | M32: 0
L33: 0 | M33: 0
L34: 0 | M34: 0
L35: 0 | M35: 0
L36: 0 | M36: 0
L37: =B$20*B37+C$20*C37+D$20*D37+E$20*E37+F$20*F37+G$20*G37+H$20*H37+I$20*I37+J$20*J37+K$20*K37 -> 0 | M37: 0
L38: 0 | M38: 0
L39: 0 | M39: 0
L40: 0 | M40: 0
L41: 0 | M41: 0
A42: Copyright © Johansson Consulting, 2004. All rights reserved. | L42: =SUM(L22:L41) -> 0 | M42: =SUM(M22:M41) -> 0
B88: 1 | C88: 2 | D88: 3 | E88: 4 | F88: 5 | G88: 6 | H88: 7 | I88: 8 | J88: 9 | K88: 10
A89: Output Variables (Y's) | B89: Revenue generation | C89: Cost reduction
A90: Output Rating 1 to 10 | B90: 6 | C90: 8
A91: Input Variables (X's) | B91: Association Table | L91: Rating | M91: %
A92: Sales training | B92: 8 | C92: 1 | L92: 56 | M92: 31.111111111111
A93: Product development | B93: 5 | C93: 3 | L93: 54 | M93: 30
A94: Staff reduction | B94: 1 | C94: 8 | L94: 70 | M94: 38.888888888889
L95: 0 | M95: 0
L96: 0 | M96: 0
L97: 0 | M97: 0
L98: 0 | M98: 0
L99: 0 | M99: 0
L100: 0 | M100: 0
L101: 0 | M101: 0
K102: Total | L102: 180

Sheet Process Map
A1: Process Map
A3: DMAIC Improvement Project:
A4: Date:
A5: Prepared by:
A6: Process/Product/Service:
A9: Use the Tools on the Process Mapping Toolbar to create your Process Map …

Sheet SIPOC
A1: SIPOC
A3: DMAIC Improvement Project:
A4: Date:
A5: Prepared by:
A6: Process/Product/Service:
A8: Suppliers | C8: Inputs | E8: Process Rolled throughput yield | G8: Outputs | I8: Customers | K8: Requirements
E11: =IF(ISNUMBER(A40),A40,1)*IF(ISNUMBER(C40),C40,1)*IF(ISNUMBER(E40),E40,1)*IF(ISNUMBER(G40),G40,1)*IF(ISNUMBER(I40),I40,1)*IF(ISNUMBER(K40),K40,1) -> 1
A27: Process Step 1 | C27: Process Step 2 | E27: Process Step 3 | G27: Process Step 4 | I27: Process Step 5 | K27: Process Step 6
A39: Yield | C39: Yield | E39: Yield | G39: Yield | I39: Yield | K39: Yield
A41: Copyright © Johansson Consulting, 2004. All rights reserved.

Sheet FMEA
A1: Failure Modes and Effects Analysis
K2: Rating | L2: Likelihood of Occurrence | M2: Severity of Effect | N2: Detectability
A3: DMAIC Improvement Project: | K3: 1 | L3: Remote | M3: None | N3: Immediately detected
A4: Date: | K4: 2 | L4: Very low | M4: Very minor effect | N4: Found easily
A5: Prepared by: | K5: 3 | L5: Low | M5: Minor | N5: Usually found
A6: Process/Product/Service: | K6: 4 | L6: Low to moderate | M6: Low to moderate | N6: Probably found
K7: 5 | L7: Moderate | M7: Moderate | N7: May be found
K8: 6 | L8: Moderate to high | M8: Moderate to high | N8: < 50% chance of detection
K9: 7 | L9: High | M9: High | N9: Unlikely to be detected
K10: 8 | L10: Very high | M10: Very high | N10: Very unlikely to be detected
K11: 9 | L11: Extremely high | M11: Hazardous | N11: Almost impossible to detect
K12: 10 | L12: Almost certain | M12: Disastrous | N12: Impossible to detect
A14: # | B14: Part Name Or Process Step | C14: Function | D14: Failure Mode | E14: Mechanism(s) and Causes(s) of Failure | F14: Occurrence [1 to 10] | G14: Effect(s) Of Failure | H14: Severity [1 to 10] | I14: Current Control | J14: Detectability [1 to 10] | K14: Risk priority number | L14: Recommended Actions | M14: Responsible Person | N14: Planned Date | O14: Completion Date
K15: =H15*F15*J15 -> 0
K16: 0
K17: 0
K18: 0
K19: 0
K20: 0
K21: 0
K22: 0
K23: 0
K24: 0
K25: 0
K26: 0
K27: 0
K28: 0
K29: 0
K30: 0
K31: 0
K32: 0
K33: 0
K34: 0
K35: 0
K36: 0
K37: 0
K38: 0
K39: 0
K40: 0
K41: 0
K42: 0
K43: 0
K44: 0
K45: 0
K46: 0
K47: 0
K48: 0
K49: 0
K50: 0
A51: Copyright © Johansson Consulting, 2004. All rights reserved.

Sheet DOE Planning
A1: Design Of Experiment (DOE) Planning Worksheet
A3: DMAIC Improvement Project:
A4: Date:
A5: Prepared By:
A6: Process/Product/Service:
A8: Problem Statement
A11: Objective
A14: Responses | B14: Unit Of Measure | C14: Specifications
A21: Controllable Factors | B21: Levels | C21: Specifications
A38: Noise Factors | B38: Levels (If Controllable) | C38: Specifications / Measurements
A50: Description Of Experimental Design To Be Used
A52: Copyright © Johansson Consulting, 2004. All rights reserved.
